{"text_format":"1","workbook":"xlsx","n_sheets":14,"sheets":["Control","Members","Results","Scores-Men","Scores-ladies","Individual Series Winners","Race 1-Men","Race 1-Ladies","Race 2-Men","Race 2-Ladies","Race 3-Men","Race 3-Ladies","Race 4-Men","Race 4-Ladies"],"not_rendered":{"charts":0,"images":0,"macros":1,"external_links":0,"defined_names":2,"comments":0,"pivot_tables":0},"unopened":[],"bounds":{"document_bytes":16777216,"sheet_cells":100000,"rows_first":2000,"rows_last":500,"rows_between":2000,"halvings":0,"cell_chars":16384,"cell_head_chars":4096},"cells_cut":0,"cells_raw":0,"read":"whole","date_system":"1900"}

{"sheet":"Control","index":0,"n_rows":25,"n_cols":34,"rows_kept":25,"cut":false,"hidden":false,"merged":[[0,29,0,33],[13,29,13,33],[0,0,0,9],[0,11,0,20],[0,22,0,24]]}
["`",null,null,null,null,null,null,null,null,null,null,"Ladies",null,null,null,null,null,null,null,null,null,null,"Clubs",null,null,null,"Rules - Men",null,null,"Runners - Men"]
[1,21,41,61,81,101,121,141,161,181,null,1,21,41,61,81,101,121,141,161,181,null,"Race","Club","Code",null,"Number of Scoring Runners",8,null,"Club","Race 1","Race 2","Race 3","Race 4"]
[2,22,42,62,82,102,122,142,162,182,null,2,22,42,62,82,102,122,142,162,182,null,1,"Ware Joggers","WJ",null,"Number of Veterans",2,null,{"$f":"X3","v":"Ware Joggers"},26,32,30,29]
[3,23,43,63,83,103,123,143,163,183,null,3,23,43,63,83,103,123,143,163,183,null,2,"Bishop's Stortford","BS",null,"Number of 2nd Claim Scorers",2,null,{"$f":"X4","v":"Bishop's Stortford"},22,23,27,17]
[4,24,44,64,84,104,124,144,164,184,null,4,24,44,64,84,104,124,144,164,184,null,3,"Saffron Striders","SS",null,null,null,null,{"$f":"X5","v":"Saffron Striders"},12,9,22,13]
[5,25,45,65,85,105,125,145,165,185,null,5,25,45,65,85,105,125,145,165,185,null,4,"Harlow Running & Tri Club","HRC",null,"Rules - Ladies",null,null,{"$f":"X6","v":"Harlow Running & Tri Club"},30,29,15,16]
[6,26,46,66,86,106,126,146,166,186,null,6,26,46,66,86,106,126,146,166,186,null,5,null,null,null,"Number of Scoring Runners",8,null,{"$f":"X7","v":0},0,0,0,0]
[7,27,47,67,87,107,127,147,167,187,null,7,27,47,67,87,107,127,147,167,187,null,6,null,null,null,"Number of Veterans",2]
[8,28,48,68,88,108,128,148,168,188,null,8,28,48,68,88,108,128,148,168,188,null,7,null,null,null,"Number of 2nd Claim Scorers",2]
[9,29,49,69,89,109,129,149,169,189,null,9,29,49,69,89,109,129,149,169,189,null,8]
[10,30,50,70,90,110,130,150,170,190,null,10,30,50,70,90,110,130,150,170,190,null,9,null,null,null,"Penalty for Incomplete team"]
[11,31,51,71,91,111,131,151,171,191,null,11,31,51,71,91,111,131,151,171,191,null,10,null,null,null,"Men",85]
[12,32,52,72,92,112,132,152,172,192,null,12,32,52,72,92,112,132,152,172,192,null,null,null,null,null,"Ladies",68]
[13,33,53,73,93,113,133,153,173,193,null,13,33,53,73,93,113,133,153,173,193,null,null,null,null,null,null,null,null,"Runners - Ladies"]
[14,34,54,74,94,114,134,154,174,194,null,14,34,54,74,94,114,134,154,174,194,null,null,"Race Number",4,null,null,null,null,"Club","Race 1","Race 2","Race 3","Race 4"]
[15,35,55,75,95,115,135,155,175,195,null,15,35,55,75,95,115,135,155,175,195,null,null,null,null,null,null,null,null,{"$f":"X3","v":"Ware Joggers"},21,21,22,21]
[16,36,56,76,96,116,136,156,176,196,null,16,36,56,76,96,116,136,156,176,196,null,null,null,null,null,null,null,null,{"$f":"X4","v":"Bishop's Stortford"},14,14,23,10]
[17,37,57,77,97,117,137,157,177,197,null,17,37,57,77,97,117,137,157,177,197,null,null,null,null,null,null,null,null,"Saffron Striders",8,3,8,7]
[18,38,58,78,98,118,138,158,178,198,null,18,38,58,78,98,118,138,158,178,198,null,null,null,null,null,null,null,null,"Harlow Running & Tri Club",23,17,14,20]
[19,39,59,79,99,119,139,159,179,199,null,19,39,59,79,99,119,139,159,179,199,null,null,null,null,null,null,null,null,0,0,0,0,0]
[20,40,60,80,100,120,140,160,180,200,null,20,40,60,80,100,120,140,160,180,200]
[]
[null,null,null,null,null,null,null,null,null,null,null,null,null,null,null,null,null,null,null,null,null,null,null,"Age Categories"]
[null,null,null,null,null,null,null,null,null,null,null,null,null,null,null,null,null,null,null,null,null,null,null,"Men","S","V40","V50","V60","V70"]
[null,null,null,null,null,null,null,null,null,null,null,null,null,null,null,null,null,null,null,null,null,null,null,"Ladies","S","V35","V45","V55","V65"]

{"sheet":"Members","index":1,"n_rows":527,"n_cols":11,"rows_kept":527,"cut":false,"hidden":false,"merged":[]}
["Adam Beaumont","BS","S",1,null,null,"Abigail White","BS","S",1]
["Adam Chapman","BS","V40",1,null,null,"Agnieszka Szulc","BS","V45",1]
["Alasdair Bruce","BS","V50",1,null,null,"Aleksandra Lyznik Wojcik","BS","V45",1]
["Alastair Clegg","BS","S",1,null,null,"alexandra matthews","BS","V45",1]
["Alastair Humphrey","BS","V40",1,null,null,"Alexia Kitching","BS","V55",1]
["Alec Felstead","BS","V70",1,null,null,"Alison Malcolm","BS","V55",1]
["Alex Cassels","BS","S",1,null,null,"ALISON WILLIAMS","BS","V65",1]
["Alexander Appleby","BS","S",1,null,null,"Alison Woods","BS","V45",1]
["Andrew Farmery","BS","S",1,null,null,"Alyson Young","BS","V55",1]
["Andrew Pooley","BS","V50",1,null,null,"Amanda Bavin","BS","V45",1]
["Andrew Wilson","BS","V50",1,null,null,"Amanda Brown","BS","V45",1]
["Andy Mcmillan","BS","S",1,null,null,"Amanda Edwards","BS","V45",1]
["Anthony Kirby","BS","V40",1,null,null,"Amy Petridis","BS","V45",1]
["Archie Gilbey","BS","S",1,null,null,"Andrea Thorpe","BS","V45",1]
["baba dib","BS","V40",1,null,null,"Anna Mowbray","BS","S",1]
["Ben Dean","BS","V40",1,null,null,"Anne Ryan","BS","V55",1]
["Ben Pickford","BS","V40",1,null,null,"Becky Morrison","BS","V45",2]
["Brian Sullivan","BS","V50",1,null,null,"Bekah Lawrence","BS","S",1]
["Callum Ross","BS","S",1,null,null,"Betty Ajuruchi","BS","V45",1]
["Chris Brolly","BS","V60",1,null,null,"Beverley May","BS","V55",1]
["Chris Chew","BS","V50",1,44,null,"Carmen Sims","BS","V45",1]
["Chris Connell","BS","V60",1,null,null,"Casey Faiers","BS","V45",1]
["Christopher Wells","BS","V60",1,null,null,"Catherine Howard","BS","V45",1]
["Daniel Beazley","BS","V40",1,null,null,"Cathy Dutta","BS","V55",1]
["David Broughton","BS","V50",1,null,null,"Catriona Dodsworth","BS","V55",1]
["David McMillan","BS","V60",1,null,null,"Charlotte Hoole","BS","S",1]
["David Reed","BS","V50",1,null,null,"Charlotte Snowdon","BS","V45",2]
["David Rutter","BS","V50",2,null,null,"Chloe Boyce","BS","V45",1]
["David Tisdale","BS","V50",1,null,null,"Claire Boylan","BS","V45",1]
["Dawid Szulc","BS","V40",1,null,null,"Claire Butler","BS","V55",1]
["Dean Ashley","BS","S",1,null,null,"Claire Fields","BS","V45",1]
["Dean Aylott","BS","S",1,null,null,"Claire Nicholson","BS","S",1]
["Dominic Mason","BS","V50",1,null,null,"Clare Gallagher","BS","V45",1]
["douglas mathers","BS","S",1,null,null,"Clare Masterson","BS","V45",1]
["Dylan Van Wyk","BS","S",1,null,null,"Colette Kerins","BS","V45",1]
["Ernesto Johnson","BS","V60",1,null,null,"Dani Hill-Welter","BS","V45",1]
["Etienne Faure","BS","V40",2,null,null,"Danielle Sims","BS","V45",1]
["Feridun Kadir","BS","V60",1,null,null,"Deborah Bridges","BS","V45",1]
["Gareth Smith","BS","V40",1,null,null,"Debra Packer","BS","V55",1]
["Garry Stuart","BS","V50",1,null,null,"Deirdre Walton","BS","V55",1]
["Gary Jones","BS","V50",1,41,null,"Denise Davenport","BS","V45",1]
["Gavin Moulton","BS","V50",1,null,null,"Donna Gilbert","BS","V45",1]
["George Munro","BS","S",1,null,null,"Eilidh Malcolm","BS","S",1]
["George Thomas","BS","V70",1,null,null,"Eleanor Mason","BS","S",1]
["Glen Malcolm","BS","V50",1,null,null,"Eleanor Rodgers","BS","V55",1]
["Gordon Mcleod","BS","S",1,32,null,"Eleanor Wells","BS","S",1]
["Gordon Wilson","BS","V60",1,null,null,"Eleanor Williams","BS","V55",1]
["Graham O'Malley","BS","V70",1,null,null,"Elizabeth Bellinger","BS","V45",1]
["Graham Ross","BS","S",1,null,null,"Ellen Brooks","BS","V45",1,33]
["Graham Willson","BS","V50",1,null,null,"Emily Clancey","BS","S",1]
["Harry McConnell","BS","S",1,null,null,"Emily Gilder","BS","S",1]
["Henry Ward","BS","S",1,18,null,"Emily Knight","BS","S",1]
["Ian Griffiths","BS","V40",1,null,null,"Emma Cowper","BS","S",1]
["Ian McClymont","BS","V70",1,null,null,"Emma Nixon","BS","V55",1]
["Ian Penson","BS","V60",1,71,null,"Emma Rejniak","BS","S",1]
["Ian Rodgers","BS","V50",1,null,null,"Fay Dodgen","BS","V55",1]
["James Delve","BS","V40",1,null,null,"Fiona Liddell","BS","V55",1]
["James Gurr","BS","S",1,null,null,"Fiona Sutherland","BS","V65",1]
["James Murdoch","BS","S",1,null,null,"Frances Iwaschkin","BS","V45",1,41]
["Jamie Smith","BS","V40",1,null,null,"Francesca Palmer","BS","V45",1]
["Jan Bisschoff","BS","V70",1,null,null,"Grace Mason","BS","S",2]
["Jason Grunwell","BS","S",1,null,null,"Greta Lyons","BS","V55",1]
["Jason Haigh","BS","V50",1,null,null,"Hannah McIlvenna","BS","V45",2]
["Jason Hasty","BS","V50",1,null,null,"Hannah Prince","BS","V45",1]
["Jerry Piron","BS","V60",1,null,null,"Harriet Wyatt","BS","V55",1]
["Jess Melville","BS","V40",1,null,null,"Hayley Smith","BS","S",1]
["Joe Lightfoot","BS","S",1,null,null,"Helen Baucher","BS","V55",1]
["John Appleby","BS","V50",1,null,null,"Helen Bird","BS","V45",1]
["John Baker","BS","V70",1,null,null,"Helen Brown","BS","V55",1]
["John Dodsworth","BS","V50",1,null,null,"Helen Hollingsworth","BS","V45",1]
["John Earley","BS","V50",1,null,null,"Inese Stan","BS","V45",1]
["John Etherden","BS","V70",1,null,null,"Iris Man","BS","V45",1]
["John Ivens","BS","V60",1,null,null,"Jane Malone","BS","V45",1]
["John Kennedy","BS","V50",1,null,null,"Jane Mansfield","BS","V55",1]
["John Neary","BS","V60",1,null,null,"Jane Storm","BS","V45",1]
["John Nichol","BS","V50",1,null,null,"Janet Howes","BS","V65",1]
["John Wright","BS","V40",1,null,null,"Janna Jenkins","BS","V45",1]
["Jonathan Derrick","BS","S",1,null,null,"Jen Burke","BS","V35",1,31]
["Jonathan Haynes","BS","V60",1,null,null,"Jennifer Frewin","BS","V45",1]
["Jonathan Round","BS","S",1,null,null,"Jennifer Payne","BS","V45",1]
["Justin Patten","BS","V50",1,null,null,"Jenny Brayshaw","BS","V65",1]
["Keir Mann","BS","V40",1,null,null,"Jenny Latham","BS","V45",1]
["Keith Duncan","BS","V50",1,null,null,"Jess Watts","BS","S",1]
["Keith House","BS","V60",1,null,null,"Jilly Palmer","BS","V55",1,54]
["Kevin Gillespie","BS","V50",1,null,null,"Joanna Jurd","BS","V45",1]
["Kevin Marshall","BS","V50",2,null,null,"Joanna Kirk","BS","V55",1]
["Kevin Mully","BS","V40",1,null,null,"Joanne Hume","BS","V45",1]
["Laurence Foote","BS","V40",1,null,null,"Joelle Carroll-Fitch","BS","S",1]
["Laurence Lee","BS","V50",1,null,null,"Jos Ashpole","BS","V45",1,47]
["Lee Boswell","BS","S",1,null,null,"Julia Fonnereau","BS","V55",1]
["Lee Kirby","BS","V40",1,null,null,"Julie Pagram","BS","V45",1]
["Lee Pickering","BS","V50",1,null,null,"Julie Rogers","BS","V55",1]
["Lee Vass","BS","V40",1,57,null,"Justine Hiluk","BS","V45",1]
["Les Thurston","BS","V70",2,null,null,"Kate Swann","BS","V55",1]
["Lewis Coomber","BS","S",1,null,null,"Katy Bellerby","BS","V55",1]
["Liam Dillon","BS","V50",1,null,null,"Kay Piper","BS","V45",1]
["Luke Shepherd","BS","S",1,null,null,"Kelly Edwards","BS","V45",1]
["Malcolm Dewhurst","BS","V60",1,null,null,"Kirsty McGuire","BS","S",2]
["Malcolm Golding","BS","V50",1,null,null,"Kirsty Reid","BS","V45",1]
["Marcus Collings","BS","V40",1,null,null,"Lara Wheeldon","BS","V45",1,35]
["Mark Booker","BS","V50",1,null,null,"Laura Hollis","BS","V45",1]
["Mark Bowman","BS","V60",1,null,null,"Laura Loveday","BS","V45",1]
["Mark Burkett","BS","V50",1,null,null,"Laura Melling","BS","V45",1]
["Mark Goodger","BS","V40",1,null,null,"Lily Murray","BS","S",1]
["Mark Lawrence","BS","S",1,30,null,"Lindsey Ireland","BS","S",1]
["Mark Palmer","BS","V50",1,null,null,"Lorraine Button","BS","V55",1]
["Mark Spiller","BS","S",1,null,null,"Lorraine Evans","BS","V55",1]
["Mark Wilds","BS","V50",1,null,null,"Louise Gardner","BS","V45",1]
["Martin Brooks","BS","S",1,null,null,"Lucy Northedge","BS","V45",1]
["Martin Howe","BS","V60",1,68,null,"Lucy Robinson","BS","V45",1]
["Martin Moulton","BS","V50",1,null,null,"Marie Hockley","BS","V55",1]
["Martin Pettitt","BS","V60",1,null,null,"Mary Amos","BS","V65",1]
["Matt McRandal","BS","S",1,null,null,"Megan Field","BS","S",1]
["Matthew Coaker","BS","V40",1,null,null,"Megan Harris","BS","V45",1]
["Matthew Cole","BS","V40",1,null,null,"Meryl Herniman","BS","V45",1]
["Matthew Ironside","BS","V40",1,16,null,"Michelle Bignall","BS","V55",1]
["Matthieu Militon","BS","V50",1,null,null,"Michelle Hasty","BS","V55",1]
["Melvyn Grimwood","BS","V40",1,null,null,"Monika Simonaityte","BS","S",1]
["Michael Connolly","BS","V60",1,null,null,"Natalie Taylor","BS","V45",2]
["Michael Moss","BS","S",1,null,null,"Natasha Spiller","BS","V45",1,55]
["Michael Silvester","BS","V40",1,null,null,"Niki Champion","BS","V45",1]
["Mike Grant","BS","V60",1,null,null,"Noreen Milkowski","BS","V55",1]
["Neal Groves","BS","V40",1,null,null,"Oana Rosu","BS","S",1]
["NEIL GAGE","BS","V40",1,46,null,"Patricia Poole","BS","V55",1,34]
["Nicholas Miller","BS","V40",1,null,null,"Paula Beades","BS","V45",1]
["Nick Smith","BS","V40",1,null,null,"Paulina Surblyte","BS","S",1]
["Nick Yeadon","BS","V50",1,null,null,"Peijie Zhu","BS","V45",1,27]
["Oliver Morrison","BS","S",1,null,null,"Phoenyx Harritt","BS","V45",1]
["Ollie Thorne","BS","S",1,null,null,"Rachael Fletcher","BS","V45",1]
["Owen Bailey","BS","V40",1,null,null,"Rachel Rissbrook","BS","V55",2]
["Paul Andrew","BS","V40",1,null,null,"Rachel Turvey","BS","V45",1]
["Paul Dearlove","BS","V50",1,63,null,"Rebecca Dolan","BS","S",1]
["Paul Kerins","BS","V60",1,null,null,"Rebecca Thorp","BS","V45",1]
["Paul Malone","BS","V50",1,null,null,"Rebecca Turner","BS","S",1]
["Paul Morrison","BS","V40",1,null,null,"Rebecca Vale","BS","S",1]
["Paul Newton","BS","V40",1,null,null,"Renatka Greenwood","BS","V45",1]
["Paul Scofield","BS","V40",1,null,null,"Robinne Colby","BS","V55",1]
["Paul Walker","BS","V50",1,null,null,"Rosely Cabus","BS","S",1]
["Pawel Sajdak","BS","S",1,null,null,"Rosemary Nugent","BS","V65",1]
["Pekka Aalto","BS","V40",1,null,null,"Sabrina Nulty","BS","V45",1]
["Peter Beatty","BS","V60",1,null,null,"Sally Bromham","BS","V45",1]
["Peter Jurd","BS","V40",1,null,null,"Sally House","BS","V55",1]
["Peter Rowe","BS","V50",1,null,null,"Sally Powell","BS","V45",1]
["Peter Wenzel","BS","V70",1,null,null,"Sanchia Aronberg","BS","V45",1]
["Peter Winfield","BS","V60",1,null,null,"sarah crooks","BS","V45",1]
["Philip Chaplin","BS","V50",1,null,null,"Sarah Foot","BS","V45",1]
["Phillip Mansfield","BS","V50",1,null,null,"Sarah Godfrey","BS","V45",1]
["Pierre Njeim","BS","S",1,null,null,"Sarah Nagle","BS","V45",1]
["Quentin Downes","BS","V40",1,null,null,"Sarah Smith","BS","V45",1]
["Richard Eddershaw","BS","V60",1,null,null,"Sarah Webber","BS","V55",1]
["Richard Foweraker","BS","V40",1,49,null,"Selina Walkley","BS","V45",1]
["Robert Thorpe","BS","V50",1,14,null,"Serena Beresford","BS","V45",1]
["Robin Newman","BS","V50",1,null,null,"Sharon Davall","BS","V45",1]
["Roger Berry","BS","V40",1,null,null,"Sharon Neary","BS","V55",1]
["Rohit Dayama","BS","V40",1,73,null,"Sharon Rootkin","BS","V55",1]
["Sam Greatrex","BS","V40",1,null,null,"Shirley Ball","BS","V65",1]
["Samuel Brennan","BS","S",1,null,null,"Sophie Barc","BS","V45",1,6]
["Samuel Pedley","BS","S",1,2,null,"Stefanie Azuga","BS","V45",1]
["Shane Tomlinson","BS","V40",1,null,null,"Stefanie Loft","BS","V45",1]
["Simon Dewhurst","BS","S",1,null,null,"Susan Anderson","BS","V45",1]
["Simon Hoy","BS","V40",1,null,null,"Susan Judge","BS","V45",1]
["Simon Judkins","BS","V40",1,null,null,"Susan Tidman","BS","V45",1]
["Simon Treadwell","BS","S",1,null,null,"Suzanne White","BS","V55",1]
["Stephen Ball","BS","V70",1,null,null,"Theresa Burke","BS","V65",1]
["Stephen Berry","BS","V40",1,null,null,"Tory Foot","BS","S",1]
["Stephen Bullough","BS","S",1,null,null,"Trudy Lynch","BS","V45",1]
["Stephen Chimunye","BS","V50",1,null,null,"Vicky Simpson","BS","V45",1]
["Stephen Crafford","BS","V50",1,null,null,"Victoria Cutler","BS","V35",1]
["Stephen Wilkes","BS","V50",1,null,null,"Victoria Maddox","BS","V45",1]
["Steven Vale","BS","V50",1,null,null,"Vivienne Law","BS","V55",1]
["Stuart Davenport","BS","V50",1,null,null,"Zoë Burnet","BS","V45",2]
["Stuart Longley","BS","V40",1,53,null,"Name","Club","Age Category","Claim"]
["Terry Robinson","BS","V70",1,null,null,"Alex Soady","HRC","S",1]
["Themi Petridis","BS","V40",1,null,null,"Alison Bull","HRC","V55",1]
["Thomas Castle","BS","V40",1,null,null,"Alison Wilkinson","HRC","V55",1,38]
["Thomas Wilton","BS","S",1,null,null,"Allison Beeton","HRC","V55",1,13]
["Tim Kelly","BS","V60",1,null,null,"Amy-Louise Ironmonger","HRC","S",1]
["Tom Raby","BS","S",2,null,null,"Angela Cook","HRC","V55",1]
["Tony Chada","BS","V50",1,null,null,"Angela Mariconda","HRC","V55",1]
["Tony Dawkins","BS","V60",2,null,null,"Anna Robey","HRC","V35",1,37]
["Tony Gaunt","BS","V70",1,null,null,"Antonella Crudgington","HRC","V45",1]
["Wayne Greet","BS","V50",1,null,null,"Bethany Drake","HRC","S",1]
["Will Bell","BS","S",1,null,null,"Bobbie Muschamp","HRC","S",1]
["Will Hunt Vincent","BS","V50",1,null,null,"Brady Ramsay","HRC","V45",1]
["Will Morton","BS","S",2,null,null,"Carinne Jay","HRC","V55",1]
["William Gilder","BS","S",1,null,null,"Catherine Ridge","HRC","V35",1,9]
["Name","Club","Age Category","Claim",null,null,"Charleen Tillotson","HRC","V35",1]
["Adam Galloway","HRC","S",1,null,null,"Charlotte Berndes","HRC","S",1]
["Alan Chatterton","HRC","S",1,null,null,"Christina Minter","HRC","V45",1]
["Alan Cootes","HRC","V60",1,70,null,"Claire Carter","HRC","V45",1]
["Alan Godbold","HRC","V50",1,null,null,"Claire Clark","HRC","V35",1]
["Alan Knightley","HRC","V50",1,null,null,"Claire Johnson","HRC","V45",1]
["Alan Wellbelove","HRC","V60",1,null,null,"Claire Morris","HRC","V35",1,44]
["Alexis Ellington","HRC","V50",1,null,null,"Danielle Trouve","HRC","S",1]
["Andrew Kinney","HRC","V50",1,null,null,"Dawn Elford","HRC","V45",1]
["Andrew Smith","HRC","V50",1,null,null,"Debbie Barry","HRC","V55",1]
["Andrew Terrell","HRC","V40",1,null,null,"Debbie Mead","HRC","V45",1]
["Art Tonge","HRC","S",1,null,null,"Deborah Pomphret","HRC","V55",1]
["Ben Adams","HRC","V40",1,null,null,"Deborah Read","HRC","V35",1,56]
["Ben Fowler","HRC","V40",1,null,null,"Dionne Jones","HRC","V45",1]
["Benison George","HRC","S",1,null,null,"Donna Milton","HRC","V45",1,18]
["Benjamin Usher","HRC","S",1,33,null,"Elizabeth Roberts","HRC","S",1]
["Bradley Holmes","HRC","S",1,null,null,"Ella Wager","HRC","S",1]
["Bradley Power","HRC","S",1,null,null,"Elle Curran","HRC","S",1]
["Chris Arnell","HRC","V40",1,null,null,"Ellie Wiseman","HRC","S",1]
["Chris Burgess","HRC","V50",1,40,null,"Emma Ashby","HRC","S",1]
["Chris Mack","HRC","S",1,null,null,"Emma Luck","HRC","V45",1]
["Chris Mella","HRC","S",1,null,null,"Emma Thompson","HRC","V45",1]
["Chris Protopapa","HRC","V50",1,null,null,"Erynn Palmer","HRC","S",2]
["Christian Golebiowski","HRC","S",1,null,null,"Fieke Blackwell","HRC","V35",1,19]
["Christopher Donnelly","HRC","V40",1,null,null,"Fiona Petrie","HRC","V35",1]
["Christopher Warburton","HRC","V40",1,null,null,"Freya Anglin-Liiv","HRC","V35",1]
["Cliff Price","HRC","V40",1,null,null,"Gail Nicholls","HRC","V55",1]
["Colin Baker","HRC","V40",1,null,null,"Harriett Martin","HRC","S",1]
["Colin Langbridge","HRC","S",1,null,null,"Heidi Fox","HRC","V45",1]
["Colin Moody","HRC","V70",1,null,null,"Helen Barrell","HRC","S",1]
["Craig Segal","HRC","S",1,null,null,"Helena May","HRC","S",1]
["Cyril Cornillet","HRC","V40",1,null,null,"Iwona Antolik","HRC","V45",1]
["Dan Winter","HRC","V40",1,null,null,"Jacqueline White","HRC","V55",1]
["Daniel Reston","HRC","V40",1,null,null,"Jane Evans","HRC","V55",1,48]
["Darren Coates","HRC","V50",1,null,null,"Janet Webster","HRC","V65",1]
["Darren Tiley","HRC","V50",1,43,null,"Jessica Carter","HRC","S",1]
["David Johnson","HRC","V50",1,null,null,"Joanne Mills","HRC","V65",1]
["Daz Red","HRC","V50",1,null,null,"Joy Hale","HRC","V35",1]
["Dennis Udall","HRC","V50",1,null,null,"Julia Gardiner","HRC","V45",1]
["Dominic Dela Cruz","HRC","S",1,null,null,"Julia Stride","HRC","V45",1]
["Dominic Emery","HRC","V50",1,null,null,"Julie Bradley","HRC","V55",1]
["Frankie Forsyth","HRC","S",1,null,null,"Julie Bull","HRC","V45",1]
["Gary Mead","HRC","V50",1,58,null,"Julie Ireland","HRC","V55",1]
["Glen Wilson","HRC","V40",1,null,null,"Karen Moir","HRC","V55",1]
["Graham Saville","HRC","V60",1,null,null,"Kate Babb","HRC","V55",1]
["Grant Beuken","HRC","S",1,null,null,"Kate Porter","HRC","V45",1]
["Hayden Rhodes","HRC","V40",1,null,null,"Katie Brownjohn","HRC","S",1]
["Iain Bulloch","HRC","V40",1,null,null,"Kelly Mcgill","HRC","V45",1]
["Jack Kelly","HRC","S",1,null,null,"Kelly Spires","HRC","V45",1]
["Jack Shury","HRC","S",1,null,null,"Keren Greenall","HRC","V45",1,57]
["Jack Waight","HRC","S",1,null,null,"Kerry Mavris","HRC","V45",1,23]
["Jacobus Van Der Poel","HRC","V70",1,null,null,"Kerry Pugsley","HRC","V35",1]
["James Catton","HRC","S",1,null,null,"Kerry-Ann Holleyman","HRC","S",1]
["James Dowsett","HRC","V40",1,null,null,"Laura Johnstone","HRC","V45",1]
["James Hay","HRC","S",1,null,null,"Laura Prime","HRC","V45",1]
["Jamie Olsen Ferreira","HRC","V40",1,null,null,"Laurel Peck","HRC","S",1]
["Jason Fox","HRC","V50",1,null,null,"Linda Helm-Manley","HRC","V55",1,16]
["Jason Fryer","HRC","V50",1,null,null,"Lisa Brett","HRC","V45",1]
["Jeff Mace","HRC","V40",1,null,null,"Lisa Cootes","HRC","V45",1]
["Jermaine Shand","HRC","S",1,null,null,"Lorna Crump","HRC","V35",1]
["John Bull","HRC","V50",1,54,null,"Lorraine Berry","HRC","V35",1]
["John Edwards","HRC","V40",1,null,null,"Louise Cootes","HRC","V35",1,22]
["John Mccarthy","HRC","V40",1,null,null,"Louise Kedge","HRC","V35",1]
["John Taylor","HRC","V50",1,null,null,"Louise Shury","HRC","V45",1]
["John Tennant","HRC","V70",1,null,null,"Louise Waterman","HRC","V35",1]
["Jon Steadman","HRC","V50",1,null,null,"Lucy Barnes","HRC","S",1]
["Jon Waight","HRC","V60",1,null,null,"Lucy Mella-Davis","HRC","V35",1]
["Josh Ramsay","HRC","S",1,null,null,"Luella Dixon","HRC","V55",1,53]
["Keith Davie","HRC","V40",1,null,null,"Martine Beard","HRC","V35",1]
["Keith Streeter","HRC","V50",1,null,null,"Melanie Harris","HRC","V65",1]
["Kevin Smith","HRC","V50",1,null,null,"Melissa Rowlands","HRC","V35",1]
["Kirk Crudgington","HRC","V40",1,21,null,"Michelle Hyde","HRC","V35",1]
["Kris Foster","HRC","S",1,null,null,"Michelle Sheridan","HRC","V35",1]
["Lee Daniels","HRC","S",1,null,null,"Millie Mcgovern","HRC","S",1]
["Lee Webber","HRC","V40",1,35,null,"Nadine Bedi","HRC","V45",1]
["Lewis Goodwin","HRC","S",1,null,null,"Natalie Carman","HRC","S",1]
["Lewis Townsend","HRC","S",1,null,null,"Natalie Thornton","HRC","V45",1]
["Luke Fargeot","HRC","V40",1,null,null,"Natasha Mccormack","HRC","V45",1]
["Luke Pykett","HRC","S",1,null,null,"Natasha Terrell","HRC","V45",1]
["Luke Remfry","HRC","S",1,null,null,"Nicki Mckenzie-Barnes","HRC","V45",1]
["Marc Witham","HRC","V40",1,null,null,"Nicola Court","HRC","V45",1]
["Mark Bentley","HRC","V50",1,null,null,"Nicolette Messenger","HRC","V45",1]
["Mark Grant","HRC","V50",1,null,null,"Paige Bircham","HRC","S",1]
["Mark Peter Taffs","HRC","V60",1,null,null,"Pat Coates","HRC","V65",1]
["Mark Unwin","HRC","V40",1,null,null,"Paulene Galoppi","HRC","V65",1]
["Martin Westley","HRC","S",1,null,null,"Pauline Weirich","HRC","V45",1]
["Martyn Coulter","HRC","S",1,23,null,"Rebecca Walker","HRC","S",1]
["Martyn Langman","HRC","S",1,null,null,"Rosie Lozeau","HRC","S",1]
["Matt Bradley","HRC","S",1,null,null,"Ruby O'Sullivan","HRC","S",1]
["Matthew Spires","HRC","V40",1,null,null,"Sandra Rust","HRC","V55",1,17]
["Michael Casey","HRC","V60",1,null,null,"Sandra Webber","HRC","V35",1,42]
["Michael Gleeson","HRC","V50",1,75,null,"Sandra Westgate","HRC","V45",1]
["Michael Houlihan","HRC","V50",1,null,null,"Sarah Medlock","HRC","V45",1]
["Michael Richards","HRC","S",1,null,null,"Sarah Whitelaw","HRC","S",1]
["Michael Robey","HRC","V40",1,null,null,"Selina Morgan","HRC","V35",1,52]
["Michael Woodruff","HRC","V60",1,null,null,"Shelley Donovan","HRC","V45",1]
["Mick Maddams","HRC","V50",1,null,null,"Sophie Evans","HRC","S",1]
["Micky Warwick","HRC","V60",1,null,null,"Stacey Miziolek","HRC","V45",1]
["Miguel Luque","HRC","V50",1,51,null,"Susan Maloney","HRC","V55",1]
["Nathan Elliston","HRC","V50",1,null,null,"Susan Reilly","HRC","V45",1]
["Neil Goodgame","HRC","V40",1,null,null,"Suzie Middleton","HRC","V45",1]
["Nick Burnage","HRC","V50",1,null,null,"Sydney Taylor","HRC","S",1]
["Nick Davis","HRC","V40",1,null,null,"Teresa Stickland","HRC","V55",1]
["Nigel Barton","HRC","V40",1,null,null,"Terri Wiley","HRC","V35",1,2]
["Nigel Hunt","HRC","V40",1,null,null,"Tracy Greenall","HRC","V45",1]
["Noel Thatcher","HRC","V50",1,null,null,"Tracy Norton","HRC","V55",1]
["Oliver Alexander","HRC","S",1,null,null,"Tracy Stratford","HRC","V35",1,43]
["Pasquale Pellecchia","HRC","V70",1,null,null,"Vanessa Murray","HRC","V45",1]
["Paul Dixon","HRC","V50",1,56,null,"Vicky Steadman","HRC","V45",1,20]
["Paul Smith","HRC","V50",1,null,null,"Victoria Cousins","HRC","V45",1]
["Peter Berry","HRC","V40",1,null,null,"Wendy Hunt","HRC","V45",1]
["Peter Mills","HRC","V70",1,null,null,"Yasmin Gregory","HRC","V55",1]
["Phil Middleton","HRC","V40",1,null,null,"Amy Thomas","SS","V35",1]
["Rhys Shimmen","HRC","S",1,null,null,"Anna Cooper","SS","V35",1]
["Richard Barnett","HRC","S",1,null,null,"Anna Kotowska","SS","S",1]
["Richard Ricketts","HRC","V50",1,null,null,"Annabel Crossmen","SS","S",1]
["Richard Thornton","HRC","V50",1,null,null,"Anne Dawson","SS","V35",1]
["Rob Lowe","HRC","V50",1,4,null,"Cara Donker","SS","V45",1]
["Rob Peters","HRC","V50",1,null,null,"Carol Ringhofer","SS","V55",1]
["Robert Cochrane","HRC","S",1,null,null,"Charlotte Diggins","SS","V45",1,29]
["Robert Foxley","HRC","V40",1,null,null,"Charlotte Teall","SS","V35",1,46]
["Robin Lozeau","HRC","V60",1,null,null,"Chloe Brown","SS","V55",1]
["Ron Newton","HRC","V60",1,null,null,"Cindy Drinnan","SS","V35",1]
["Roy Steven","HRC","V70",1,null,null,"Claire Crommie","SS","V45",1]
["Ryan Smith","HRC","V40",1,25,null,"Claire Steel","SS","V35",1]
["Salvatore Maggiulli","HRC","V70",1,null,null,"Clare Little","SS","V55",1]
["Sam Nicholls","HRC","S",1,null,null,"Coral White","SS","S",1]
["Sam Spurgeon","HRC","S",1,null,null,"Dawn Ruff","SS","V35",1]
["Scott Bird","HRC","S",1,null,null,"Fiona Halls","SS","V45",1]
["Sean Flynn","HRC","V60",1,61,null,"Fiona Viney","SS","V45",1]
["Sean O'Connor","HRC","V50",1,null,null,"Fliss Tournant","SS","S",1]
["Sean Wardle","HRC","V50",1,null,null,"Flo Greatrix","SS","S",1,10]
["Shaun Whiter","HRC","S",1,null,null,"Gill Sarginson","SS","V55",1]
["Simon Haigh","HRC","V50",1,null,null,"Gillian Herbert","SS","V55",1]
["Simon Marrocco","HRC","V40",2,null,null,"Gina Holley","SS","V45",1]
["Simon Morgans","HRC","V40",1,null,null,"Helen Howard","SS","V45",1,30]
["Sjaak Van der Poel","HRC","S",1,null,null,"Helen Marks","SS","V55",1]
["Stephen Cozens","HRC","V40",1,74,null,"Helen Sears","SS","V45",1]
["Stephen Leahy","HRC","V50",1,null,null,"Issie Grayson","SS","V65",1]
["Stephen Mayo","HRC","V40",1,null,null,"Jacqueline Lucas","SS","V55",1]
["Steve Hennessy","HRC","V40",1,null,null,"Jemma Jessup","SS","S",1]
["Steve Warren","HRC","V60",1,null,null,"Jennifer Murray","SS","V35",1]
["Steve Wright","HRC","V50",1,null,null,"Jo Dallas","SS","V55",1]
["Stuart Glynn","HRC","S",1,null,null,"Julie Hartle","SS","V55",1]
["Thomas Baines","HRC","S",1,null,null,"June Brennan","SS","V65",1]
["Thomas Beales","HRC","V40",1,null,null,"Kate Holden","SS","V55",1]
["Timothy Wood","HRC","S",1,null,null,"Kate Poulter","SS","V45",1]
["Tj Rowlands","HRC","V40",1,null,null,"Kate Waite","SS","S",1]
["Tony Harman","HRC","V60",1,null,null,"Katharine Lewis","SS","V45",1]
["Tyrone Mustafa","HRC","V50",1,null,null,"Kathy Nixon","SS","V55",1]
["Vincent Martin","HRC","V60",1,null,null,"Kavita White","SS","V45",1]
["William Cutts","HRC","S",1,null,null,"Kay Phillips","SS","V55",1]
["Alan Gleaves","SS","V40",1,null,null,"Kerry Brooks","SS","V45",1]
["Alan Jones","SS","V50",1,null,null,"Kerry Harrington","SS","V45",1,26]
["Alan Taylor","SS","V50",1,null,null,"Lili Pluck","SS","V45",1]
["Alex Bibby","SS","V40",1,null,null,"Linda Brett","SS","V55",1]
["Alex Smith","SS","S",1,null,null,"Lindsay Seth","SS","V35",1]
["Alexandre Ros","SS","V50",1,null,null,"Lisa Plumb","SS","V45",1]
["Alistair Cooke","SS","V40",1,66,null,"Lucie Heanley","SS","V35",1]
["Amit Davda","SS","S",1,null,null,"Lucy Coston","SS","S",1]
["Andrew Armour","SS","V40",1,null,null,"Margit Wendelberger James","SS","V55",1,36]
["Andrew Flind","SS","V50",1,null,null,"Martha Flind","SS","S",1]
["Andrew Jacklin","SS","S",1,null,null,"Melissa Sangha","SS","V45",1]
["Andrew Page","SS","V40",1,null,null,"Natalie Gilder","SS","V35",1]
["Andy Watkins","SS","V40",1,null,null,"Nikola Coutts","SS","V45",1]
["Archie Ruggles-Brise","SS","V40",1,null,null,"Paula Thurston","SS","V45",1]
["Arnold Sienerth","SS","V40",1,null,null,"Phily Watson","SS","S",1]
["Arthur Oliva","SS","V60",1,62,null,"Rachael Pearson","SS","V35",1]
["Barry Taylor","SS","V40",1,null,null,"Rachel Everitt","SS","S",1]
["Ben Wright","SS","S",1,null,null,"Rebecca White","SS","V35",1]
["Bryn Reynolds","SS","S",2,null,null,"Salli White","SS","S",1]
["Calum Ewing","SS","V40",1,null,null,"Sara Larsen Armstrong","SS","S",1]
["Chris Dodge","SS","V50",1,null,null,"Sarah McKenna","SS","V55",1]
["Chris O'Donovan","SS","S",2,null,null,"Sarah Shucksmith","SS","V35",1]
["Chris Shucksmith","SS","S",1,null,null,"Shelley Menell","SS","V35",1]
["Craig Dyce","SS","V50",1,null,null,"Siobhan Gibson","SS","V55",1]
["Daniel Vaughan","SS","V40",1,null,null,"Sue Hamilton","SS","V35",1]
["Darren Barnes","SS","V40",1,null,null,"Sue Hayden","SS","V45",1]
["Dave Lewis","SS","V60",1,null,null,"Susan Grant","SS","V55",1]
["David Bulmer","SS","V40",1,null,null,"Tamara Lamb","SS","V55",1]
["David Martin","SS","V50",1,null,null,"Tina Hamilton","SS","V45",1]
["David Raimondo","SS","V40",1,52,null,"Valerie Foreman","SS","V35",1]
["David Sinnet","SS","V40",1,null,null,"Vicky Reed","SS","V45",1]
["David Tew","SS","V60",1,null,null,"Victoria Cutler","SS","V45",1]
["Edward Benyon","SS","V40",1,null,null,"Vivienne Prentice","SS","V55",1]
["George Lloyd","SS","S",1,null,null,"Zib Gotto","SS","V45",1,5]
["Graeme Loudain","SS","V60",1,null,null,"Amanda Richard","WJ","V45",1]
["Grant Sherbourne","SS","S",1,null,null,"Anne Ramsden","WJ","V65",1]
["Guy Taylor","SS","S",1,null,null,"Annie Thomas","WJ","V65",1]
["Guy Tremayne","SS","V60",2,null,null,"Anthea Francis","WJ","V45",1,14]
["Harry Game","SS","S",1,null,null,"Beverley McLees","WJ","V45",1]
["Henry Rowe","SS","V60",1,null,null,"Carla Bell","WJ","V55",1]
["Iain Cumming","SS","S",1,null,null,"Carol Hayward","WJ","V65",2]
["Iain Henley","SS","V40",1,15,null,"Caroline Reardon","WJ","V45",1]
["Iain Rogers","SS","V50",1,null,null,"Caroline Stephens","WJ","V65",1]
["Ian Christopher Scott","SS","V50",1,null,null,"Cate Campany","WJ","V55",1,15]
["Ian MacDougall","SS","V60",1,48,null,"Chris Reed","WJ","V65",1]
["Jason Coles","SS","V50",1,null,null,"Christel Ainge","WJ","V45",1,39]
["Jayson Shuter","SS","S",2,null,null,"Christy van Maanenberg","WJ","V45",1]
["Joe Hall","SS","V50",1,null,null,"Claire Nichols","WJ","V45",1]
["John Heanley","SS","V40",1,null,null,"Claire Teague","WJ","V45",1]
["John James","SS","V60",1,55,null,"Claire Watson","WJ","V45",1]
["Jon Cooke","SS","V50",1,null,null,"Clare Browne","WJ","V55",2]
["Joshua Entwistle","SS","S",2,null,null,"Claron Riviere","WJ","V65",1]
["Justin Attelsey","SS","V40",1,null,null,"Deborah Amies","WJ","V55",1,25]
["Justin James","SS","V50",1,null,null,"Elizabeth Lord","WJ","V75",1]
["Ken Cumin","SS","V40",1,null,null,"Elizabeth Watson","WJ","V65",1]
["Lee Gamble","SS","V40",1,null,null,"Emily Reid","WJ","V45",1]
["Lewis Elmes","SS","S",1,null,null,"Emma Mulley","WJ","V35",1,12]
["Marco Arcidiacono","SS","V50",1,36,null,"Esther Bouma","WJ","V55",1]
["Mark Anderton","SS","V40",1,null,null,"Fiona Alder","WJ","V55",1]
["Mark Coutts","SS","V40",1,null,null,"Fiona Smith","WJ","S",1]
["Mark Fitzhenry","SS","V60",1,null,null,"Gemma Charville","WJ","V35",1,11]
["Mark Frow","SS","S",1,null,null,"Hazel Nichols","WJ","V75",1]
["Mark Thackstone","SS","V50",1,null,null,"Jacki Clifford","WJ","V55",1]
["Matthew Billis","SS","V40",1,24,null,"Jacqui Barnard","WJ","V55",1]
["Matthew Switzer","SS","V40",1,null,null,"Jan Stock","WJ","V55",1]
["Mayank Seth","SS","V40",1,null,null,"Jane Wren","WJ","V55",2,32]
["Michael Bradley","SS","V50",1,72,null,"Janet Readitt","WJ","V55",1]
["Neil Halls","SS","V50",1,59,null,"Jeanette Collins","WJ","V55",1,49]
["Niall Sullivan","SS","V40",1,null,null,"Jemina Punni","WJ","V35",1,21]
["Nick White","SS","V40",1,null,null,"Jenni Viner","WJ","V65",1]
["Nick Wilkinson","SS","V50",1,null,null,"Jennifer Evans","WJ","S",1]
["Nigel Coates","SS","V60",1,null,null,"Jill Patel","WJ","V55",1]
["Nigel Flynn","SS","V40",1,28,null,"Joanne Gladding","WJ","V35",1]
["Nigel Poad","SS","V50",1,null,null,"Joanne Gray","WJ","V35",1,40]
["Oliver Diggins","SS","V40",1,null,null,"Josephine Joel","WJ","V45",1]
["Patrick Bickerton","SS","V40",1,null,null,"Judy Sillitto","WJ","V55",1]
["Paul Johnstone","SS","V40",1,null,null,"Julia Booker","WJ","V45",1]
["Paul Long","SS","V50",1,null,null,"Julia Gristwood","WJ","V55",2]
["Pieter de Koning","SS","V50",1,null,null,"Kate Day","WJ","V35",1]
["Ranky Barbelis","SS","S",1,null,null,"Katie Blacker","WJ","V45",1]
["Richard Auty","SS","V40",1,null,null,"Katrina Dobson","WJ","V35",1,3]
["Richard Balarkas","SS","V60",1,null,null,"Katy Woodward","WJ","V35",1,1]
["Richard Viney","SS","V50",1,null,null,"Lisa Roberts","WJ","V45",1]
["Robert Shaw","SS","V60",2,69,null,"Louise Oliver","WJ","V45",1]
["Russell Sanford","SS","V40",1,null,null,"Lucy Dupuis","WJ","V45",1,8]
["Samuel Scheibel","SS","S",1,null,null,"Lucy Elizabeth Jones","WJ","V35",1]
["Simon Chambers","SS","V50",1,null,null,"Lynsay Evans","WJ","V55",1,45]
["Simon Ede","SS","V40",1,null,null,"Marcia Fisher","WJ","V45",1,50]
["Simon Ollerenshaw","SS","V50",1,null,null,"Margaret Balfour","WJ","V65",1]
["Stephen Hillyard","SS","V50",1,null,null,"Margaret Waddingham","WJ","V75",1]
["Stephen Inkley","SS","V60",1,null,null,"Marianne Mitchell","WJ","V45",1,4]
["Stuart Gibson","SS","V50",1,null,null,"Maureen Hurt","WJ","V55",1]
["Thomas Coutts","SS","S",1,null,null,"Mel Farnes","WJ","V45",1]
["Thomas Dudson","SS","S",1,null,null,"Melanie Blackaby","WJ","V45",1]
["Thomas Roelleke","SS","V50",1,null,null,"Michelle Cross","WJ","V55",1]
["Tim McMahon","SS","V40",1,22,null,"Nadia Selby","WJ","V45",1,51]
["Tim Penn","SS","V70",1,null,null,"Nicola Pickering","WJ","V55",1]
["Tim Tait","SS","V40",1,null,null,"Olu Gooden","WJ","V55",2]
["Tim Wilkinson","SS","V40",1,null,null,"Pamela Wilson","WJ","V65",1,24]
["Toby Lumsden","SS","V60",1,null,null,"Paula Gollop","WJ","V35",1]
["Tony Bacon","SS","V40",2,null,null,"Rachel Symonds","WJ","V35",1]
["Tony Kelly","SS","V60",1,null,null,"Rebecca Drinkwater","WJ","V45",2]
["Yusuf Firat","SS","V50",2,null,null,"Rhonda Moon","WJ","V45",1]
["Paul Kemmitt","SS ","V50",1,null,null,"Rita Williams","WJ","V65",2]
["Adam Watson","WJ","V40",1,null,null,"Rosalind Hitchen","WJ","V55",1,58]
["Alan Rafferty","WJ","V60",1,null,null,"Sam Rowe","WJ","V55",1,28]
["Alan Randall","WJ","V60",2,65,null,"Sarah Berry","WJ","V35",1]
["Alan Taylor","WJ","V50",1,38,null,"Sarah Doe","WJ","V45",1]
["Alexander Chappell","WJ","S",1,20,null,"Sharon Threlfall","WJ","V45",1]
["Andrew Biggs","WJ","V40",1,42,null,"Sue Taylor","WJ","V45",1]
["Andrew Kavanagh","WJ","S",1,26,null,"Susan Millward","WJ","V45",1,7]
["Andrew Mynott","WJ","V40",1,3,null,"Teresa Weedon","WJ","V55",1]
["Austin Gray","WJ","V40",1,null,null,"Terri Bell","WJ","V45",1]
["Bailey Doe","WJ","S",1,null,null,"Tina Clark","WJ","V45",1]
["Brian Smith","WJ","V70",1,null,null,"Tracy Brennan","WJ","V45",1]
["Chris Haws","WJ","V50",2,null,null,"Val Stringer","WJ","V85",1]
["Christopher Ganney","WJ","V40",1,null,null,"Vibeke Rowe","WJ","V75",1]
["Clive Smith","WJ","V60",1,null,null,"Wendy Reddaway","WJ","V55",1]
["Colin Naman","WJ","V70",1,null,null,"Jo Gray","WJ","V40",1]
["David Craddock","WJ","S",1,5]
["Frank O'Shea","WJ","V70",1]
["Garth Morris","WJ","V60",1]
["Iain McMurray","WJ","S",1]
["Ian Perrins","WJ","S",1]
["James Appleby","WJ","S",1]
["James Baker","WJ","S",1,39]
["James Randall","WJ","V40",1,47]
["James Reed","WJ","V40",1]
["Jamie Higgs","WJ","V40",1,27]
["Jason Mentern","WJ","V50",1]
["John Borgars","WJ","V70",2]
["John Butcher","WJ","V90",1]
["John Mallett","WJ","V40",2]
["John Matthews","WJ","V50",2]
["Jon Williams","WJ","V40",1]
["Jonathan Hall","WJ","V40",1]
["Joseph Coffey","WJ","S",1]
["Kevin Francis","WJ","V40",1]
["Kevin Sambridge","WJ","V50",1,9]
["Les Taylor","WJ","V50",1]
["Liam Struwe","WJ","S",1,6]
["Mark Cyl","WJ","V50",1]
["Mark Ford","WJ","S",1,13]
["Mark Sanz","WJ","V50",1,34]
["Martin Sillitto","WJ","V60",1]
["Matt Brown","WJ","V40",1]
["Matt Earl","WJ","V40",1]
["Matthew Stephens","WJ","S",1]
["Michael Waddington","WJ","S",1,1]
["Mikey Wilce","WJ","S",1]
["Neil Bull","WJ","V40",1,19]
["Nick Axam","WJ","V40",1,7]
["Nick Cheal","WJ","V70",1]
["Nick Kenyon-Muir","WJ","V50",1]
["Nick Sansom","WJ","V40",1]
["Pascal McManmon","WJ","V60",1]
["Paul Brennan","WJ","V50",1]
["Paul Cocklin","WJ","V60",1]
["Paul Heuvelmans","WJ","V40",1]
["Paul Reddaway","WJ","V60",1]
["Peter Baker","WJ","V60",1,45]
["Peter Keats","WJ","V60",1]
["Phil Cunningham","WJ","V70",1]
["Phil Earle","WJ","V40",1,31]
["Phil Hudson","WJ","V60",1]
["Phillip Barnard","WJ","V60",1]
["Richard Coffey","WJ","V50",1]
["Richard Hearne","WJ","V40",1]
["Richard van Maanenberg","WJ","V50",1,60]
["Robert Waddingham","WJ","V60",1]
["Roger Partridge","WJ","V60",1]
["Roy Stringer","WJ","V80",1]
["Russell Cook","WJ","S",1,37]
["Simon Joyce","WJ","V50",1,67]
["Stefan Gauntlett","WJ","S",1,29]
["Stephen Johnson","WJ","V70",1]
["Steven Argent","WJ","V60",1,50]
["Stuart Ballard","WJ","V60",1]
["Terry Nichols","WJ","V80",1]
["Tim Brignall","WJ","S",1,10]
["Tom Porter","WJ","S",1,12]
["Tom Quinn","WJ","S",1]
["Tony Browne","WJ","V60",1]
["Tony Rose","WJ","V60",1]
["Vincent Riviere","WJ","V40",1,11]
["Wayne Baxter","WJ","V40",1]
["Will Breese","WJ","S",1,8]
["William Caunce","WJ","S",1,17]
["Balint Bone","BS","S",1,64]

{"sheet":"Results","index":2,"n_rows":32,"n_cols":15,"rows_kept":32,"cut":false,"hidden":false,"merged":[]}
[null,"Mens Score",null,null,null,null,null,null,null,"Mens Score"]
[null,"Club","Race 1","Race 2","Race 3","Race 4","Total",null,null,"Club","Race 1","Race 2","Race 3","Race 4","Total"]
[null,{"$f":"Control!AD3","v":"Ware Joggers"},53,47,51,49,{"$f":"SUM(C3:F3)","v":200},null,null,"Ware Joggers",{"$f":"IF(ISNA(RANK(C3,C$3:C$6)),0,RANK(C3,C$3:C$6))","v":4},4,4,{"$f":"IF(ISNA(RANK(F3,F$3:F$6)),0,RANK(F3,F$3:F$6))","v":4},{"$f":"SUM(K3:N3)","v":16}]
[null,{"$f":"Control!AD4","v":"Bishop's Stortford"},131,162,186,197,{"$f":"SUM(C4:F4)","v":676},null,null,"Bishop's Stortford",3,3,3,{"$f":"IF(ISNA(RANK(F4,F$3:F$6)),0,RANK(F4,F$3:F$6))","v":3},{"$f":"SUM(K4:N4)","v":12}]
[null,{"$f":"Control!AD5","v":"Saffron Striders"},321,340,210,280,{"$f":"SUM(C5:F5)","v":1151},null,null,"Saffron Striders",1,1,2,{"$f":"IF(ISNA(RANK(F5,F$3:F$6)),0,RANK(F5,F$3:F$6))","v":1},5]
[null,{"$f":"Control!AD6","v":"Harlow Running & Tri Club"},171,196,235,224,{"$f":"SUM(C6:F6)","v":826},null,null,"Harlow Running & Tri Club",2,2,1,{"$f":"IF(ISNA(RANK(F6,F$3:F$6)),0,RANK(F6,F$3:F$6))","v":2},7]
[null,null,null,824,840,680]
[]
[]
[]
[]
[]
[]
[null,"Ladies Score",null,null,null,null,null,null,null,"Ladies Score"]
[null,"Club","Race 1","Race 2","Race 3","Race 4","Total",null,null,"Club","Race 1","Race 2","Race 3","Race 4","Total"]
[null,{"$f":"Control!AD16","v":"Ware Joggers"},78,83,90,60,{"$f":"SUM(C16:F16)","v":311},null,null,"Ware Joggers",{"$f":"IF(ISNA(RANK(C16,C$16:C$19)),0,RANK(C16,C$16:C$19))","v":4},{"$f":"IF(ISNA(RANK(D16,D$16:D$19)),0,RANK(D16,D$16:D$19))","v":4},4,{"$f":"IF(ISNA(RANK(F16,F$16:F$19)),0,RANK(F16,F$16:F$19))","v":4},{"$f":"SUM(K16:N16)","v":16}]
[null,{"$f":"Control!AD17","v":"Bishop's Stortford"},105,169,91,254,{"$f":"SUM(C17:F17)","v":619},null,null,"Bishop's Stortford",{"$f":"IF(ISNA(RANK(C17,C$16:C$19)),0,RANK(C17,C$16:C$19))","v":3},2,3,{"$f":"IF(ISNA(RANK(F17,F$16:F$19)),0,RANK(F17,F$16:F$19))","v":1},9]
[null,{"$f":"Control!AD18","v":"Saffron Striders"},245,386,224,250,{"$f":"SUM(C18:F18)","v":1105},null,null,"Saffron Striders",1,1,1,{"$f":"IF(ISNA(RANK(F18,F$16:F$19)),0,RANK(F18,F$16:F$19))","v":2},5]
[null,{"$f":"Control!AD19","v":"Harlow Running & Tri Club"},166,111,179,114,{"$f":"SUM(C19:F19)","v":570},null,null,"Harlow Running & Tri Club",2,3,2,{"$f":"IF(ISNA(RANK(F19,F$16:F$19)),0,RANK(F19,F$16:F$19))","v":3},10]
[null,null,null,520,616,544]
[]
[]
[]
[]
[]
[]
[null,"Overall Score",null,null,null,null,null,null,null,"Overall Score"]
[null,"Club","Race 1","Race 2","Race 3","Race 4","Total",null,null,"Club","Race 1","Race 2","Race 3","Race 4","Total"]
[null,{"$f":"B16","v":"Ware Joggers"},{"$f":"C3+C16","v":131},130,141,{"$f":"F3+F16","v":109},{"$f":"SUM(C29:F29)","v":511},null,null,"Ware Joggers",{"$f":"IF(ISNA(RANK(C29,C$29:C$32)),0,RANK(C29,C$29:C$32))","v":4},{"$f":"IF(ISNA(RANK(D29,D$29:D$32)),0,RANK(D29,D$29:D$32))","v":4},4,{"$f":"IF(F29=0,0,RANK(F29,F$29:F$32))","v":4},{"$f":"SUM(K29:N29)","v":16}]
[null,{"$f":"B17","v":"Bishop's Stortford"},236,331,277,{"$f":"F4+F17","v":451},1295,null,null,"Bishop's Stortford",{"$f":"IF(ISNA(RANK(C30,C$29:C$32)),0,RANK(C30,C$29:C$32))","v":3},2,3,{"$f":"IF(F30=0,0,RANK(F30,F$29:F$32))","v":2},10]
[null,"Saffron Striders",566,726,434,{"$f":"F5+F18","v":530},2256,null,null,"Saffron Striders",1,1,1,1,4]
[null,"Harlow Running & Tri Club",337,307,414,{"$f":"F6+F19","v":338},1396,null,null,"Harlow Running & Tri Club",2,3,2,3,10]

{"sheet":"Scores-Men","index":3,"n_rows":0,"n_cols":0,"rows_kept":0,"cut":false,"hidden":true,"merged":[]}

{"sheet":"Scores-ladies","index":4,"n_rows":0,"n_cols":0,"rows_kept":0,"cut":false,"hidden":true,"merged":[]}

{"sheet":"Individual Series Winners","index":5,"n_rows":13,"n_cols":3,"rows_kept":13,"cut":false,"hidden":false,"merged":[]}
["Mens"]
["Michael Waddington","WJ","S"]
["Andrew Mynott","WJ","V40"]
["Rob Lowe","HRC","V50"]
["Ian MacDougall","SS","V60"]
["Colin Naman","WJ","V70"]
[]
["Ladies"]
["Lindsey Ireland","BS","S"]
["Katy Woodward","WJ","V35"]
["Maraianne Mitchell","WJ","V45"]
["Cate Campany","WJ","V55"]
["Pamela Wilson","WJ","V65"]

{"sheet":"Race 1-Men","index":6,"n_rows":92,"n_cols":40,"rows_kept":92,"cut":false,"hidden":false,"merged":[]}
["Overall",null,null,null,null,null,"Ware Joggers",null,null,null,null,null,null,"Bishop's Stortford",null,null,null,null,null,null,"Saffron Striders",null,null,null,null,null,null,"Harlow Running & Tri Club"]
["Name","Club","Age Category","Claim","Position",null,"Name","Club","Age Category","Claim","Position",null,null,"Name","Club","Age Category","Claim","Position",null,null,"Name","Club","Age Category","Claim","Position",null,null,"Name","Club","Age Category","Claim","Position",null,null,"Name","Club","Age Category","Claim","Position"]
["Michael Waddington","WJ","S",1,1,null,"Michael Waddington","WJ","S",1,1,1,null,"Mark Spiller","BS","S",1,4,4,null,"David Raimondo","SS","V40",1,7,7,null,"Rob Lowe","HRC","V50",1,3,3]
["Andrew Mynott","WJ","V40",1,2,null,"Andrew Mynott","WJ","V40",1,2,2,null,"Robert Thorpe","BS","V50",1,13,13,null,"Tim McMahon","SS","V40",1,23,23,null,"Martin Westley","HRC","S",1,11,11]
["Rob Lowe","HRC","V50",1,3,null,"Kevin Francis","WJ","V40",1,5,5,null,"Stephen Wilkes","BS","V50",1,14,14,null,"Ian MacDougall","SS","V60",1,28,28,null,"Martyn Coulter","HRC","S",1,18,18]
["Mark Spiller","BS","S",1,4,null,"Will Breese","WJ","S",1,6,6,null,"Keir Mann","BS","V40",1,15,15,null,"Marco Arcidiacono","SS","V50",1,40,40,null,"Colin Baker","HRC","V40",1,20,20]
["Kevin Francis","WJ","V40",1,5,null,"Tom Quinn","WJ","S",1,8,8,null,"Matthew Ironside","BS","V40",1,16,16,null,"Iain Cumming","SS","S",1,44,44,null,"Ryan Smith","HRC","V40",1,22,22]
["Will Breese","WJ","S",1,6,null,"Matt Brown","WJ","V40",1,9,9,null,"Peter Jurd","BS","V40",1,17,17,null,"Toby Lumsden","SS","V60",1,58,58,null,"Christian Golebiowski","HRC","S",1,31,31]
["David Raimondo","SS","V40",1,7,null,"Kevin Sambridge","WJ","V50",1,10,10,null,"Matthew Cole","BS","V40",1,25,25,null,"Nigel Poad","SS","V50",1,59,59,null,"Benjamin Usher","HRC","S",1,32,32]
["Tom Quinn","WJ","S",1,8,null,"Mark Ford","WJ","S",1,12,12,null,"Nick Smith","BS","V40",1,27,27,null,"Neil Halls","SS","V50",1,62,62,null,"Andrew Terrell","HRC","V40",1,34,34]
["Matt Brown","WJ","V40",1,9,null,"Neil Bull","WJ","V40",1,19,null,null,"Adam Chapman","BS","V40",1,33,null,null,"John James","SS","V60",1,64,null,null,"Thomas Beales","HRC","V40",1,37]
["Kevin Sambridge","WJ","V50",1,10,null,"Garth Morris","WJ","V60",1,21,null,null,"Dominic Mason","BS","V50",1,35,null,null,"Richard Balarkas","SS","V60",1,67,null,null,"Phil Middleton","HRC","V40",1,41]
["Martin Westley","HRC","S",1,11,null,"Andrew Kavanagh","WJ","S",1,24,null,null,"Joe Lightfoot","BS","S",1,56,null,null,"Arthur Oliva","SS","V60",1,68,null,null,"Jermaine Shand","HRC","S",1,43]
["Mark Ford","WJ","S",1,12,null,"Nick Kenyon-Muir","WJ","V50",1,26,null,null,"NEIL GAGE","BS","V40",1,57,null,null,"Alistair Cooke","SS","V40",1,78,null,null,"Bradley Power","HRC","S",1,45]
["Robert Thorpe","BS","V50",1,13,null,"Jamie Higgs","WJ","V40",1,29,null,null,"Matthieu Militon","BS","V50",1,60,null,null,null,null,null,null,null,null,null,"Jon Steadman","HRC","V50",1,47]
["Stephen Wilkes","BS","V50",1,14,null,"Stefan Gauntlett","WJ","S",1,30,null,null,"Richard Foweraker","BS","V40",1,61,null,null,null,null,null,null,null,null,null,"James Catton","HRC","S",1,48]
["Keir Mann","BS","V40",1,15,null,"Russell Cook","WJ","S",1,36,null,null,"Chris Chew","BS","V50",1,63,null,null,null,null,null,null,null,null,null,"Lewis Goodwin","HRC","S",1,49]
["Matthew Ironside","BS","V40",1,16,null,"Mark Sanz","WJ","V50",1,38,null,null,"John Kennedy","BS","V50",1,66,null,null,null,null,null,null,null,null,null,"Lee Webber","HRC","V40",1,50]
["Peter Jurd","BS","V40",1,17,null,"Mikey Wilce","WJ","S",1,39,null,null,"Jamie Smith","BS","V40",1,69,null,null,null,null,null,null,null,null,null,"Marc Witham","HRC","V40",1,52]
["Martyn Coulter","HRC","S",1,18,null,"Adam Watson","WJ","V40",1,42,null,null,"Paul Dearlove","BS","V50",1,72,null,null,null,null,null,null,null,null,null,"Keith Streeter","HRC","V50",1,53]
["Neil Bull","WJ","V40",1,19,null,"Alan Taylor","WJ","V50",1,46,null,null,"Martin Howe","BS","V60",1,74,null,null,null,null,null,null,null,null,null,"Jason Fox","HRC","V50",1,54]
["Colin Baker","HRC","V40",1,20,null,"Peter Baker","WJ","V60",1,51,null,null,"Lee Vass","BS","V40",1,75,null,null,null,null,null,null,null,null,null,"Miguel Luque","HRC","V50",1,65]
["Garth Morris","WJ","V60",1,21,null,"Jonathan Hall","WJ","V40",1,55,null,null,"Lee Pickering","BS","V50",1,82,null,null,null,null,null,null,null,null,null,"John Bull","HRC","V50",1,70]
["Ryan Smith","HRC","V40",1,22,null,"Simon Joyce","WJ","V50",1,76,null,null,"Ian Penson","BS","V60",1,86,null,null,null,null,null,null,null,null,null,"Gary Mead","HRC","V50",1,71]
["Tim McMahon","SS","V40",1,23,null,"Clive Smith","WJ","V60",1,79,null,null,null,null,null,null,null,null,null,null,null,null,null,null,null,null,"John Tennant","HRC","V70",1,73]
["Andrew Kavanagh","WJ","S",1,24,null,"Phillip Barnard","WJ","V60",1,80,null,null,null,null,null,null,null,null,null,null,null,null,null,null,null,null,"Alan Cootes","HRC","V60",1,77]
["Matthew Cole","BS","V40",1,25,null,"Roger Partridge","WJ","V60",1,89,null,null,null,null,null,null,null,null,null,null,null,null,null,null,null,null,"Pasquale Pellecchia","HRC","V70",1,81]
["Nick Kenyon-Muir","WJ","V50",1,26,null,"Colin Naman","WJ","V70",1,90,null,null,null,null,null,null,null,null,null,null,null,null,null,null,null,null,"Tj Rowlands","HRC","V40",1,83]
["Nick Smith","BS","V40",1,27,null,null,null,null,null,null,null,null,null,null,null,null,null,null,null,null,null,null,null,null,null,null,"Frankie Forsyth","HRC","S",1,84]
["Ian MacDougall","SS","V60",1,28,null,null,null,null,null,null,null,null,null,null,null,null,null,null,null,null,null,null,null,null,null,null,"Michael Robey","HRC","V40",1,85]
["Jamie Higgs","WJ","V40",1,29,null,null,null,null,null,null,null,null,null,null,null,null,null,null,null,null,null,null,null,null,null,null,"Sjaak Van der Poel","HRC","S",1,87]
["Stefan Gauntlett","WJ","S",1,30,null,null,null,null,null,null,null,null,null,null,null,null,null,null,null,null,null,null,null,null,null,null,"Colin Langbridge","HRC","S",1,88]
["Christian Golebiowski","HRC","S",1,31]
["Benjamin Usher","HRC","S",1,32]
["Adam Chapman","BS","V40",1,33,null,"Senior",null,null,null,null,null,null,"V40",null,null,null,null,null,null,"V50",null,null,null,null,null,null,"V60",null,null,null,null,null,null,"V70"]
["Andrew Terrell","HRC","V40",1,34,null,"Name","Club","Age Category","Claim","Overall Position","Category Position",null,"Name","Club","Age Category","Claim","Overall Position","Category Position",null,"Name","Club","Age Category","Claim","Overall Position","Category Position",null,"Name","Club","Age Category","Claim","Overall Position","Category Position",null,"Name","Club","Age Category","Claim","Overall Position","Category Position"]
["Dominic Mason","BS","V50",1,35,null,"Michael Waddington","WJ","S",1,1,1,null,"Andrew Mynott","WJ","V40",1,2,1,null,"Rob Lowe","HRC","V50",1,3,1,null,"Garth Morris","WJ","V60",1,21,1,null,"John Tennant","HRC","V70",1,73,1]
["Russell Cook","WJ","S",1,36,null,"Mark Spiller","BS","S",1,4,2,null,"Kevin Francis","WJ","V40",1,5,2,null,"Kevin Sambridge","WJ","V50",1,10,2,null,"Ian MacDougall","SS","V60",1,28,2,null,"Pasquale Pellecchia","HRC","V70",1,81,2]
["Thomas Beales","HRC","V40",1,37,null,"Will Breese","WJ","S",1,6,3,null,"David Raimondo","SS","V40",1,7,3,null,"Robert Thorpe","BS","V50",1,13,3,null,"Peter Baker","WJ","V60",1,51,3,null,"Colin Naman","WJ","V70",1,90,3]
["Mark Sanz","WJ","V50",1,38,null,"Tom Quinn","WJ","S",1,8,4,null,"Matt Brown","WJ","V40",1,9,4,null,"Stephen Wilkes","BS","V50",1,14,4,null,"Toby Lumsden","SS","V60",1,58,4]
["Mikey Wilce","WJ","S",1,39,null,"Martin Westley","HRC","S",1,11,5,null,"Keir Mann","BS","V40",1,15,5,null,"Nick Kenyon-Muir","WJ","V50",1,26,5,null,"John James","SS","V60",1,64,5]
["Marco Arcidiacono","SS","V50",1,40,null,"Mark Ford","WJ","S",1,12,6,null,"Matthew Ironside","BS","V40",1,16,6,null,"Dominic Mason","BS","V50",1,35,6,null,"Richard Balarkas","SS","V60",1,67,6]
["Phil Middleton","HRC","V40",1,41,null,"Martyn Coulter","HRC","S",1,18,7,null,"Peter Jurd","BS","V40",1,17,7,null,"Mark Sanz","WJ","V50",1,38,7,null,"Arthur Oliva","SS","V60",1,68,7]
["Adam Watson","WJ","V40",1,42,null,"Andrew Kavanagh","WJ","S",1,24,8,null,"Neil Bull","WJ","V40",1,19,8,null,"Marco Arcidiacono","SS","V50",1,40,8,null,"Martin Howe","BS","V60",1,74,8]
["Jermaine Shand","HRC","S",1,43,null,"Stefan Gauntlett","WJ","S",1,30,9,null,"Colin Baker","HRC","V40",1,20,9,null,"Alan Taylor","WJ","V50",1,46,9,null,"Alan Cootes","HRC","V60",1,77,9]
["Iain Cumming","SS","S",1,44,null,"Christian Golebiowski","HRC","S",1,31,10,null,"Ryan Smith","HRC","V40",1,22,10,null,"Jon Steadman","HRC","V50",1,47,10,null,"Clive Smith","WJ","V60",1,79,10]
["Bradley Power","HRC","S",1,45,null,"Benjamin Usher","HRC","S",1,32,11,null,"Tim McMahon","SS","V40",1,23,11,null,"Keith Streeter","HRC","V50",1,53,11,null,"Phillip Barnard","WJ","V60",1,80,11]
["Alan Taylor","WJ","V50",1,46,null,"Russell Cook","WJ","S",1,36,12,null,"Matthew Cole","BS","V40",1,25,12,null,"Jason Fox","HRC","V50",1,54,12,null,"Ian Penson","BS","V60",1,86,12]
["Jon Steadman","HRC","V50",1,47,null,"Mikey Wilce","WJ","S",1,39,13,null,"Nick Smith","BS","V40",1,27,13,null,"Nigel Poad","SS","V50",1,59,13,null,"Roger Partridge","WJ","V60",1,89,13]
["James Catton","HRC","S",1,48,null,"Jermaine Shand","HRC","S",1,43,14,null,"Jamie Higgs","WJ","V40",1,29,14,null,"Matthieu Militon","BS","V50",1,60,14]
["Lewis Goodwin","HRC","S",1,49,null,"Iain Cumming","SS","S",1,44,15,null,"Adam Chapman","BS","V40",1,33,15,null,"Neil Halls","SS","V50",1,62,15]
["Lee Webber","HRC","V40",1,50,null,"Bradley Power","HRC","S",1,45,16,null,"Andrew Terrell","HRC","V40",1,34,16,null,"Chris Chew","BS","V50",1,63,16]
["Peter Baker","WJ","V60",1,51,null,"James Catton","HRC","S",1,48,17,null,"Thomas Beales","HRC","V40",1,37,17,null,"Miguel Luque","HRC","V50",1,65,17]
["Marc Witham","HRC","V40",1,52,null,"Lewis Goodwin","HRC","S",1,49,18,null,"Phil Middleton","HRC","V40",1,41,18,null,"John Kennedy","BS","V50",1,66,18]
["Keith Streeter","HRC","V50",1,53,null,"Joe Lightfoot","BS","S",1,56,19,null,"Adam Watson","WJ","V40",1,42,19,null,"John Bull","HRC","V50",1,70,19]
["Jason Fox","HRC","V50",1,54,null,"Frankie Forsyth","HRC","S",1,84,20,null,"Lee Webber","HRC","V40",1,50,20,null,"Gary Mead","HRC","V50",1,71,20]
["Jonathan Hall","WJ","V40",1,55,null,"Sjaak Van der Poel","HRC","S",1,87,21,null,"Marc Witham","HRC","V40",1,52,21,null,"Paul Dearlove","BS","V50",1,72,21]
["Joe Lightfoot","BS","S",1,56,null,"Colin Langbridge","HRC","S",1,88,22,null,"Jonathan Hall","WJ","V40",1,55,22,null,"Simon Joyce","WJ","V50",1,76,22]
["NEIL GAGE","BS","V40",1,57,null,null,null,null,null,null,null,null,"NEIL GAGE","BS","V40",1,57,23,null,"Lee Pickering","BS","V50",1,82,23]
["Toby Lumsden","SS","V60",1,58,null,null,null,null,null,null,null,null,"Richard Foweraker","BS","V40",1,61,24]
["Nigel Poad","SS","V50",1,59,null,null,null,null,null,null,null,null,"Jamie Smith","BS","V40",1,69,25]
["Matthieu Militon","BS","V50",1,60,null,null,null,null,null,null,null,null,"Lee Vass","BS","V40",1,75,26]
["Richard Foweraker","BS","V40",1,61,null,null,null,null,null,null,null,null,"Alistair Cooke","SS","V40",1,78,27]
["Neil Halls","SS","V50",1,62,null,null,null,null,null,null,null,null,"Tj Rowlands","HRC","V40",1,83,28]
["Chris Chew","BS","V50",1,63,null,null,null,null,null,null,null,null,"Michael Robey","HRC","V40",1,85,29]
["John James","SS","V60",1,64]
["Miguel Luque","HRC","V50",1,65]
["John Kennedy","BS","V50",1,66]
["Richard Balarkas","SS","V60",1,67]
["Arthur Oliva","SS","V60",1,68]
["Jamie Smith","BS","V40",1,69]
["John Bull","HRC","V50",1,70]
["Gary Mead","HRC","V50",1,71]
["Paul Dearlove","BS","V50",1,72]
["John Tennant","HRC","V70",1,73]
["Martin Howe","BS","V60",1,74]
["Lee Vass","BS","V40",1,75]
["Simon Joyce","WJ","V50",1,76]
["Alan Cootes","HRC","V60",1,77]
["Alistair Cooke","SS","V40",1,78]
["Clive Smith","WJ","V60",1,79]
["Phillip Barnard","WJ","V60",1,80]
["Pasquale Pellecchia","HRC","V70",1,81]
["Lee Pickering","BS","V50",1,82]
["Tj Rowlands","HRC","V40",1,83]
["Frankie Forsyth","HRC","S",1,84]
["Michael Robey","HRC","V40",1,85]
["Ian Penson","BS","V60",1,86]
["Sjaak Van der Poel","HRC","S",1,87]
["Colin Langbridge","HRC","S",1,88]
["Roger Partridge","WJ","V60",1,89]
["Colin Naman","WJ","V70",1,90]

{"sheet":"Race 1-Ladies","index":7,"n_rows":68,"n_cols":40,"rows_kept":68,"cut":false,"hidden":false,"merged":[]}
["Overall",null,null,null,null,null,"Ware Joggers",null,null,null,null,null,null,"Bishop's Stortford",null,null,null,null,null,null,"Saffron Striders",null,null,null,null,null,null,"Harlow Running & Tri Club"]
["Name","Club","Age Category","Claim","Position",null,"Name","Club","Age Category","Claim","Position",null,null,"Name","Club","Age Category","Claim","Position",null,null,"Name","Club","Age Category","Claim","Position",null,null,"Name","Club","Age Category","Claim","Position",null,null,"Name","Club","Age Category","Claim","Position"]
["Katy Woodward","WJ","V35",1,1,null,"Katy Woodward","WJ","V35",1,1,1,null,"Elizabeth Bellinger","BS","V45",1,3,3,null,"Zib Gotto","SS","V45",1,9,9,null,"Terri Wiley","HRC","V35",1,2,2]
["Terri Wiley","HRC","V35",1,2,null,"Katrina Dobson","WJ","V35",1,4,4,null,"Sophie Barc","BS","V45",1,6,6,null,"Kerry Harrington","SS","V45",1,21,21,null,"Paige Bircham","HRC","S",1,16,16]
["Elizabeth Bellinger","BS","V45",1,3,null,"Marianne Mitchell","WJ","V45",1,5,5,null,"Grace Mason","BS","S",2,8,8,null,"Lucie Heanley","SS","V35",1,23,23,null,"Ella Wager","HRC","S",1,19,19]
["Katrina Dobson","WJ","V35",1,4,null,"Susan Millward","WJ","V45",1,7,7,null,"Emily Clancey","BS","S",1,10,10,null,"Charlotte Teall","SS","V35",1,34,34,null,"Louise Cootes","HRC","V35",1,20,20]
["Marianne Mitchell","WJ","V45",1,5,null,"Beverley McLees","WJ","V45",1,11,11,null,"Laura Hollis","BS","V45",1,12,12,null,"Annabel Crossmen","SS","S",1,35,35,null,"Sandra Rust","HRC","V55",1,24,24]
["Sophie Barc","BS","V45",1,6,null,"Emma Mulley","WJ","V35",1,15,15,null,"Lily Murray","BS","S",1,13,13,null,"Charlotte Diggins","SS","V45",1,38,38,null,"Linda Helm-Manley","HRC","V55",1,26,26]
["Susan Millward","WJ","V45",1,7,null,"Anthea Francis","WJ","V45",1,17,17,null,"Lindsey Ireland","BS","S",1,14,14,null,"Margit Wendelberger James","SS","V55",1,42,42,null,"Michelle Hyde","HRC","V35",1,29,29]
["Grace Mason","BS","S",2,8,null,"Emily Reid","WJ","V45",1,18,18,null,"Peijie Zhu","BS","V45",1,39,39,null,"Rachel Everitt","SS","S",1,43,43,null,"Michelle Sheridan","HRC","V35",1,30,30]
["Zib Gotto","SS","V45",1,9,null,"Gemma Charville","WJ","V35",1,22,null,null,"Jenny Brayshaw","BS","V65",1,54,null,null,null,null,null,null,null,null,null,"Gail Nicholls","HRC","V55",1,31]
["Emily Clancey","BS","S",1,10,null,"Cate Campany","WJ","V55",1,25,null,null,"Niki Champion","BS","V45",1,56,null,null,null,null,null,null,null,null,null,"Emma Luck","HRC","V45",1,33]
["Beverley McLees","WJ","V45",1,11,null,"Jemina Punni","WJ","V35",1,27,null,null,"Cathy Dutta","BS","V55",1,57,null,null,null,null,null,null,null,null,null,"Kerry Mavris","HRC","V45",1,37]
["Laura Hollis","BS","V45",1,12,null,"Pamela Wilson","WJ","V65",1,28,null,null,"Fay Dodgen","BS","V55",1,63,null,null,null,null,null,null,null,null,null,"Louise Kedge","HRC","V35",1,41]
["Lily Murray","BS","S",1,13,null,"Deborah Amies","WJ","V55",1,32,null,null,"Victoria Cutler","BS","V35",1,65,null,null,null,null,null,null,null,null,null,"Jane Evans","HRC","V55",1,44]
["Lindsey Ireland","BS","S",1,14,null,"Jennifer Evans","WJ","S",1,36,null,null,"Bekah Lawrence","BS","S",1,66,null,null,null,null,null,null,null,null,null,"Melissa Rowlands","HRC","V35",1,45]
["Emma Mulley","WJ","V35",1,15,null,"Sam Rowe","WJ","V55",1,40,null,null,null,null,null,null,null,null,null,null,null,null,null,null,null,null,"Anna Robey","HRC","V35",1,46]
["Paige Bircham","HRC","S",1,16,null,"Paula Gollop","WJ","V35",1,48,null,null,null,null,null,null,null,null,null,null,null,null,null,null,null,null,"Sandra Webber","HRC","V35",1,47]
["Anthea Francis","WJ","V45",1,17,null,"Lynsay Evans","WJ","V55",1,50,null,null,null,null,null,null,null,null,null,null,null,null,null,null,null,null,"Kate Babb","HRC","V55",1,49]
["Emily Reid","WJ","V45",1,18,null,"Rhonda Moon","WJ","V45",1,53,null,null,null,null,null,null,null,null,null,null,null,null,null,null,null,null,"Claire Morris","HRC","V35",1,51]
["Ella Wager","HRC","S",1,19,null,"Anne Ramsden","WJ","V65",1,55,null,null,null,null,null,null,null,null,null,null,null,null,null,null,null,null,"Kelly Mcgill","HRC","V45",1,52]
["Louise Cootes","HRC","V35",1,20,null,"Marcia Fisher","WJ","V45",1,58,null,null,null,null,null,null,null,null,null,null,null,null,null,null,null,null,"Selina Morgan","HRC","V35",1,59]
["Kerry Harrington","SS","V45",1,21,null,"Jacqui Barnard","WJ","V55",1,62,null,null,null,null,null,null,null,null,null,null,null,null,null,null,null,null,"Karen Moir","HRC","V55",1,60]
["Gemma Charville","WJ","V35",1,22,null,null,null,null,null,null,null,null,null,null,null,null,null,null,null,null,null,null,null,null,null,null,"Keren Greenall","HRC","V45",1,61]
["Lucie Heanley","SS","V35",1,23,null,null,null,null,null,null,null,null,null,null,null,null,null,null,null,null,null,null,null,null,null,null,"Stacey Miziolek","HRC","V45",1,64]
["Sandra Rust","HRC","V55",1,24]
["Cate Campany","WJ","V55",1,25]
["Linda Helm-Manley","HRC","V55",1,26,null,"Senior",null,null,null,null,null,null,"V35",null,null,null,null,null,null,"V45",null,null,null,null,null,null,"V55",null,null,null,null,null,null,"V65"]
["Jemina Punni","WJ","V35",1,27,null,"Name","Club","Age Category","Claim","Overall Position","Category Position",null,"Name","Club","Age Category","Claim","Overall Position","Category Position",null,"Name","Club","Age Category","Claim","Overall Position","Category Position",null,"Name","Club","Age Category","Claim","Overall Position","Category Position",null,"Name","Club","Age Category","Claim","Overall Position","Category Position"]
["Pamela Wilson","WJ","V65",1,28,null,"Grace Mason","BS","S",2,8,1,null,"Katy Woodward","WJ","V35",1,1,1,null,"Elizabeth Bellinger","BS","V45",1,3,1,null,"Sandra Rust","HRC","V55",1,24,1,null,"Pamela Wilson","WJ","V65",1,28,1]
["Michelle Hyde","HRC","V35",1,29,null,"Emily Clancey","BS","S",1,10,2,null,"Terri Wiley","HRC","V35",1,2,2,null,"Marianne Mitchell","WJ","V45",1,5,2,null,"Cate Campany","WJ","V55",1,25,2,null,"Jenny Brayshaw","BS","V65",1,54,2]
["Michelle Sheridan","HRC","V35",1,30,null,"Lily Murray","BS","S",1,13,3,null,"Katrina Dobson","WJ","V35",1,4,3,null,"Sophie Barc","BS","V45",1,6,3,null,"Linda Helm-Manley","HRC","V55",1,26,3,null,"Anne Ramsden","WJ","V65",1,55,3]
["Gail Nicholls","HRC","V55",1,31,null,"Lindsey Ireland","BS","S",1,14,4,null,"Emma Mulley","WJ","V35",1,15,4,null,"Susan Millward","WJ","V45",1,7,4,null,"Gail Nicholls","HRC","V55",1,31,4]
["Deborah Amies","WJ","V55",1,32,null,"Paige Bircham","HRC","S",1,16,5,null,"Louise Cootes","HRC","V35",1,20,5,null,"Zib Gotto","SS","V45",1,9,5,null,"Deborah Amies","WJ","V55",1,32,5]
["Emma Luck","HRC","V45",1,33,null,"Ella Wager","HRC","S",1,19,6,null,"Gemma Charville","WJ","V35",1,22,6,null,"Beverley McLees","WJ","V45",1,11,6,null,"Sam Rowe","WJ","V55",1,40,6]
["Charlotte Teall","SS","V35",1,34,null,"Annabel Crossmen","SS","S",1,35,7,null,"Lucie Heanley","SS","V35",1,23,7,null,"Laura Hollis","BS","V45",1,12,7,null,"Margit Wendelberger James","SS","V55",1,42,7]
["Annabel Crossmen","SS","S",1,35,null,"Jennifer Evans","WJ","S",1,36,8,null,"Jemina Punni","WJ","V35",1,27,8,null,"Anthea Francis","WJ","V45",1,17,8,null,"Jane Evans","HRC","V55",1,44,8]
["Jennifer Evans","WJ","S",1,36,null,"Rachel Everitt","SS","S",1,43,9,null,"Michelle Hyde","HRC","V35",1,29,9,null,"Emily Reid","WJ","V45",1,18,9,null,"Kate Babb","HRC","V55",1,49,9]
["Kerry Mavris","HRC","V45",1,37,null,"Bekah Lawrence","BS","S",1,66,10,null,"Michelle Sheridan","HRC","V35",1,30,10,null,"Kerry Harrington","SS","V45",1,21,10,null,"Lynsay Evans","WJ","V55",1,50,10]
["Charlotte Diggins","SS","V45",1,38,null,null,null,null,null,null,null,null,"Charlotte Teall","SS","V35",1,34,11,null,"Emma Luck","HRC","V45",1,33,11,null,"Cathy Dutta","BS","V55",1,57,11]
["Peijie Zhu","BS","V45",1,39,null,null,null,null,null,null,null,null,"Louise Kedge","HRC","V35",1,41,12,null,"Kerry Mavris","HRC","V45",1,37,12,null,"Karen Moir","HRC","V55",1,60,12]
["Sam Rowe","WJ","V55",1,40,null,null,null,null,null,null,null,null,"Melissa Rowlands","HRC","V35",1,45,13,null,"Charlotte Diggins","SS","V45",1,38,13,null,"Jacqui Barnard","WJ","V55",1,62,13]
["Louise Kedge","HRC","V35",1,41,null,null,null,null,null,null,null,null,"Anna Robey","HRC","V35",1,46,14,null,"Peijie Zhu","BS","V45",1,39,14,null,"Fay Dodgen","BS","V55",1,63,14]
["Margit Wendelberger James","SS","V55",1,42,null,null,null,null,null,null,null,null,"Sandra Webber","HRC","V35",1,47,15,null,"Kelly Mcgill","HRC","V45",1,52,15]
["Rachel Everitt","SS","S",1,43,null,null,null,null,null,null,null,null,"Paula Gollop","WJ","V35",1,48,16,null,"Rhonda Moon","WJ","V45",1,53,16]
["Jane Evans","HRC","V55",1,44,null,null,null,null,null,null,null,null,"Claire Morris","HRC","V35",1,51,17,null,"Niki Champion","BS","V45",1,56,17]
["Melissa Rowlands","HRC","V35",1,45,null,null,null,null,null,null,null,null,"Selina Morgan","HRC","V35",1,59,18,null,"Marcia Fisher","WJ","V45",1,58,18]
["Anna Robey","HRC","V35",1,46,null,null,null,null,null,null,null,null,"Victoria Cutler","BS","V35",1,65,19,null,"Keren Greenall","HRC","V45",1,61,19]
["Sandra Webber","HRC","V35",1,47,null,null,null,null,null,null,null,null,null,null,null,null,null,null,null,"Stacey Miziolek","HRC","V45",1,64,20]
["Paula Gollop","WJ","V35",1,48]
["Kate Babb","HRC","V55",1,49]
["Lynsay Evans","WJ","V55",1,50]
["Claire Morris","HRC","V35",1,51]
["Kelly Mcgill","HRC","V45",1,52]
["Rhonda Moon","WJ","V45",1,53]
["Jenny Brayshaw","BS","V65",1,54]
["Anne Ramsden","WJ","V65",1,55]
["Niki Champion","BS","V45",1,56]
["Cathy Dutta","BS","V55",1,57]
["Marcia Fisher","WJ","V45",1,58]
["Selina Morgan","HRC","V35",1,59]
["Karen Moir","HRC","V55",1,60]
["Keren Greenall","HRC","V45",1,61]
["Jacqui Barnard","WJ","V55",1,62]
["Fay Dodgen","BS","V55",1,63]
["Stacey Miziolek","HRC","V45",1,64]
["Victoria Cutler","BS","V35",1,65]
["Bekah Lawrence","BS","S",1,66]

{"sheet":"Race 2-Men","index":8,"n_rows":95,"n_cols":40,"rows_kept":95,"cut":false,"hidden":false,"merged":[]}
["Overall",null,null,null,null,null,"Ware Joggers",null,null,null,null,null,null,"Bishop's Stortford",null,null,null,null,null,null,"Saffron Striders",null,null,null,null,null,null,"Harlow Running & Tri Club"]
["Name","Club","Age Category","Claim","Position",null,"Name","Club","Age Category","Claim","Position",null,null,"Name","Club","Age Category","Claim","Position",null,null,"Name","Club","Age Category","Claim","Position",null,null,"Name","Club","Age Category","Claim","Position",null,null,"Name","Club","Age Category","Claim","Position"]
["Michael Waddington","WJ","S",1,1,null,"Michael Waddington","WJ","S",1,1,1,null,"Dylan Van Wyk","BS","S",1,3,3,null,"Tim McMahon","SS","V40",1,17,17,null,"Rob Lowe","HRC","V50",1,5,5]
["Andrew Mynott","WJ","V40",1,2,null,"Andrew Mynott","WJ","V40",1,2,2,null,"Robert Thorpe","BS","V50",1,12,12,null,"Matthew Billis","SS","V40",1,23,23,null,"Kirk Crudgington","HRC","V40",1,18,18]
["Dylan Van Wyk","BS","S",1,3,null,"Tim Brignall","WJ","S",1,4,4,null,"Matt McRandal","BS","S",1,13,13,null,"Ian MacDougall","SS","V60",1,28,28,null,"Ryan Smith","HRC","V40",1,21,21]
["Tim Brignall","WJ","S",1,4,null,"David Craddock","WJ","S",1,6,6,null,"Keir Mann","BS","V40",1,14,14,null,"Marco Arcidiacono","SS","V50",1,40,40,null,"Christian Golebiowski","HRC","S",1,25,25]
["Rob Lowe","HRC","V50",1,5,null,"Liam Struwe","WJ","S",1,7,7,null,"Adam Chapman","BS","V40",1,22,22,null,"Iain Cumming","SS","S",1,41,41,null,"Christopher Donnelly","HRC","V40",1,29,29]
["David Craddock","WJ","S",1,6,null,"Kevin Francis","WJ","V40",1,8,8,null,"Matthew Cole","BS","V40",1,27,27,null,"Toby Lumsden","SS","V60",1,54,54,null,"Benjamin Usher","HRC","S",1,30,30]
["Liam Struwe","WJ","S",1,7,null,"Will Breese","WJ","S",1,9,9,null,"Gary Jones","BS","V50",1,32,32,null,"Neil Halls","SS","V50",1,64,64,null,"Lee Webber","HRC","V40",1,33,33]
["Kevin Francis","WJ","V40",1,8,null,"Ian Perrins","WJ","S",1,10,10,null,"Gordon Mcleod","BS","S",1,39,39,null,"Arthur Oliva","SS","V60",1,73,73,null,"Colin Baker","HRC","V40",1,35,35]
["Will Breese","WJ","S",1,9,null,"Nick Axam","WJ","V40",1,11,null,null,"Dominic Mason","BS","V50",1,47,null,null,"Alistair Cooke","SS","V40",1,77,null,null,"Jermaine Shand","HRC","S",1,36]
["Ian Perrins","WJ","S",1,10,null,"Kevin Sambridge","WJ","V50",1,15,null,null,"Chris Chew","BS","V50",1,50,null,null,null,null,null,null,null,null,null,"Chris Mella","HRC","S",1,44]
["Nick Axam","WJ","V40",1,11,null,"Tom Porter","WJ","S",1,16,null,null,"Samuel Brennan","BS","S",1,58,null,null,null,null,null,null,null,null,null,"Marc Witham","HRC","V40",1,45]
["Robert Thorpe","BS","V50",1,12,null,"Neil Bull","WJ","V40",1,19,null,null,"Jamie Smith","BS","V40",1,59,null,null,null,null,null,null,null,null,null,"Timothy Wood","HRC","S",1,46]
["Matt McRandal","BS","S",1,13,null,"Vincent Riviere","WJ","V40",1,20,null,null,"Peter Beatty","BS","V60",1,61,null,null,null,null,null,null,null,null,null,"Alan Knightley","HRC","V50",1,49]
["Keir Mann","BS","V40",1,14,null,"Matt Brown","WJ","V40",1,24,null,null,"John Kennedy","BS","V50",1,62,null,null,null,null,null,null,null,null,null,"Chris Burgess","HRC","V50",1,51]
["Kevin Sambridge","WJ","V50",1,15,null,"Stefan Gauntlett","WJ","S",1,26,null,null,"NEIL GAGE","BS","V40",1,65,null,null,null,null,null,null,null,null,null,"James Dowsett","HRC","V40",1,53]
["Tom Porter","WJ","S",1,16,null,"Jamie Higgs","WJ","V40",1,31,null,null,"Richard Foweraker","BS","V40",1,66,null,null,null,null,null,null,null,null,null,"Bradley Power","HRC","S",1,56]
["Tim McMahon","SS","V40",1,17,null,"Mikey Wilce","WJ","S",1,34,null,null,"Peter Winfield","BS","V60",1,69,null,null,null,null,null,null,null,null,null,"Sam Spurgeon","HRC","S",1,60]
["Kirk Crudgington","HRC","V40",1,18,null,"Russell Cook","WJ","S",1,37,null,null,"Lee Boswell","BS","S",1,70,null,null,null,null,null,null,null,null,null,"Miguel Luque","HRC","V50",1,67]
["Neil Bull","WJ","V40",1,19,null,"Alexander Chappell","WJ","S",1,38,null,null,"Paul Andrew","BS","V40",1,72,null,null,null,null,null,null,null,null,null,"John Bull","HRC","V50",1,68]
["Vincent Riviere","WJ","V40",1,20,null,"Alan Taylor","WJ","V50",1,42,null,null,"Shane Tomlinson","BS","V40",1,76,null,null,null,null,null,null,null,null,null,"Sean Flynn","HRC","V60",1,71]
["Ryan Smith","HRC","V40",1,21,null,"Mark Sanz","WJ","V50",1,43,null,null,"Chris Brolly","BS","V60",1,80,null,null,null,null,null,null,null,null,null,"Paul Dixon","HRC","V50",1,74]
["Adam Chapman","BS","V40",1,22,null,"Jonathan Hall","WJ","V40",1,48,null,null,"Lee Pickering","BS","V50",1,83,null,null,null,null,null,null,null,null,null,"Gary Mead","HRC","V50",1,75]
["Matthew Billis","SS","V40",1,23,null,"Adam Watson","WJ","V40",1,52,null,null,"Ian Penson","BS","V60",1,84,null,null,null,null,null,null,null,null,null,"Jamie Olsen Ferreira","HRC","V40",1,78]
["Matt Brown","WJ","V40",1,24,null,"Andrew Biggs","WJ","V40",1,55,null,null,null,null,null,null,null,null,null,null,null,null,null,null,null,null,"John Tennant","HRC","V70",1,79]
["Christian Golebiowski","HRC","S",1,25,null,"James Randall","WJ","V40",1,57,null,null,null,null,null,null,null,null,null,null,null,null,null,null,null,null,"Colin Langbridge","HRC","S",1,85]
["Stefan Gauntlett","WJ","S",1,26,null,"Paul Brennan","WJ","V50",1,63,null,null,null,null,null,null,null,null,null,null,null,null,null,null,null,null,"Michael Robey","HRC","V40",1,87]
["Matthew Cole","BS","V40",1,27,null,"Clive Smith","WJ","V60",1,81,null,null,null,null,null,null,null,null,null,null,null,null,null,null,null,null,"John Taylor","HRC","V50",1,88]
["Ian MacDougall","SS","V60",1,28,null,"Alan Rafferty","WJ","V60",1,82,null,null,null,null,null,null,null,null,null,null,null,null,null,null,null,null,"Jacobus Van Der Poel","HRC","V70",1,91]
["Christopher Donnelly","HRC","V40",1,29,null,"Roger Partridge","WJ","V60",1,86,null,null,null,null,null,null,null,null,null,null,null,null,null,null,null,null,"Tj Rowlands","HRC","V40",1,93]
["Benjamin Usher","HRC","S",1,30,null,"Nick Cheal","WJ","V70",1,89]
["Jamie Higgs","WJ","V40",1,31,null,"Phil Hudson","WJ","V60",1,90]
["Gary Jones","BS","V50",1,32,null,"Colin Naman","WJ","V70",1,92]
["Lee Webber","HRC","V40",1,33]
["Mikey Wilce","WJ","S",1,34]
["Colin Baker","HRC","V40",1,35,null,"Senior",null,null,null,null,null,null,"V40",null,null,null,null,null,null,"V50",null,null,null,null,null,null,"V60",null,null,null,null,null,null,"V70"]
["Jermaine Shand","HRC","S",1,36,null,"Name","Club","Age Category","Claim","Overall Position","Category Position",null,"Name","Club","Age Category","Claim","Overall Position","Category Position",null,"Name","Club","Age Category","Claim","Overall Position","Category Position",null,"Name","Club","Age Category","Claim","Overall Position","Category Position",null,"Name","Club","Age Category","Claim","Overall Position","Category Position"]
["Russell Cook","WJ","S",1,37,null,"Michael Waddington","WJ","S",1,1,1,null,"Andrew Mynott","WJ","V40",1,2,1,null,"Rob Lowe","HRC","V50",1,5,1,null,"Ian MacDougall","SS","V60",1,28,1,null,"John Tennant","HRC","V70",1,79,1]
["Alexander Chappell","WJ","S",1,38,null,"Dylan Van Wyk","BS","S",1,3,2,null,"Kevin Francis","WJ","V40",1,8,2,null,"Robert Thorpe","BS","V50",1,12,2,null,"Toby Lumsden","SS","V60",1,54,2,null,"Nick Cheal","WJ","V70",1,89,2]
["Gordon Mcleod","BS","S",1,39,null,"Tim Brignall","WJ","S",1,4,3,null,"Nick Axam","WJ","V40",1,11,3,null,"Kevin Sambridge","WJ","V50",1,15,3,null,"Peter Beatty","BS","V60",1,61,3,null,"Jacobus Van Der Poel","HRC","V70",1,91,3]
["Marco Arcidiacono","SS","V50",1,40,null,"David Craddock","WJ","S",1,6,4,null,"Keir Mann","BS","V40",1,14,4,null,"Gary Jones","BS","V50",1,32,4,null,"Peter Winfield","BS","V60",1,69,4,null,"Colin Naman","WJ","V70",1,92,4]
["Iain Cumming","SS","S",1,41,null,"Liam Struwe","WJ","S",1,7,5,null,"Tim McMahon","SS","V40",1,17,5,null,"Marco Arcidiacono","SS","V50",1,40,5,null,"Sean Flynn","HRC","V60",1,71,5]
["Alan Taylor","WJ","V50",1,42,null,"Will Breese","WJ","S",1,9,6,null,"Kirk Crudgington","HRC","V40",1,18,6,null,"Alan Taylor","WJ","V50",1,42,6,null,"Arthur Oliva","SS","V60",1,73,6]
["Mark Sanz","WJ","V50",1,43,null,"Ian Perrins","WJ","S",1,10,7,null,"Neil Bull","WJ","V40",1,19,7,null,"Mark Sanz","WJ","V50",1,43,7,null,"Chris Brolly","BS","V60",1,80,7]
["Chris Mella","HRC","S",1,44,null,"Matt McRandal","BS","S",1,13,8,null,"Vincent Riviere","WJ","V40",1,20,8,null,"Dominic Mason","BS","V50",1,47,8,null,"Clive Smith","WJ","V60",1,81,8]
["Marc Witham","HRC","V40",1,45,null,"Tom Porter","WJ","S",1,16,9,null,"Ryan Smith","HRC","V40",1,21,9,null,"Alan Knightley","HRC","V50",1,49,9,null,"Alan Rafferty","WJ","V60",1,82,9]
["Timothy Wood","HRC","S",1,46,null,"Christian Golebiowski","HRC","S",1,25,10,null,"Adam Chapman","BS","V40",1,22,10,null,"Chris Chew","BS","V50",1,50,10,null,"Ian Penson","BS","V60",1,84,10]
["Dominic Mason","BS","V50",1,47,null,"Stefan Gauntlett","WJ","S",1,26,11,null,"Matthew Billis","SS","V40",1,23,11,null,"Chris Burgess","HRC","V50",1,51,11,null,"Roger Partridge","WJ","V60",1,86,11]
["Jonathan Hall","WJ","V40",1,48,null,"Benjamin Usher","HRC","S",1,30,12,null,"Matt Brown","WJ","V40",1,24,12,null,"John Kennedy","BS","V50",1,62,12,null,"Phil Hudson","WJ","V60",1,90,12]
["Alan Knightley","HRC","V50",1,49,null,"Mikey Wilce","WJ","S",1,34,13,null,"Matthew Cole","BS","V40",1,27,13,null,"Paul Brennan","WJ","V50",1,63,13]
["Chris Chew","BS","V50",1,50,null,"Jermaine Shand","HRC","S",1,36,14,null,"Christopher Donnelly","HRC","V40",1,29,14,null,"Neil Halls","SS","V50",1,64,14]
["Chris Burgess","HRC","V50",1,51,null,"Russell Cook","WJ","S",1,37,15,null,"Jamie Higgs","WJ","V40",1,31,15,null,"Miguel Luque","HRC","V50",1,67,15]
["Adam Watson","WJ","V40",1,52,null,"Alexander Chappell","WJ","S",1,38,16,null,"Lee Webber","HRC","V40",1,33,16,null,"John Bull","HRC","V50",1,68,16]
["James Dowsett","HRC","V40",1,53,null,"Gordon Mcleod","BS","S",1,39,17,null,"Colin Baker","HRC","V40",1,35,17,null,"Paul Dixon","HRC","V50",1,74,17]
["Toby Lumsden","SS","V60",1,54,null,"Iain Cumming","SS","S",1,41,18,null,"Marc Witham","HRC","V40",1,45,18,null,"Gary Mead","HRC","V50",1,75,18]
["Andrew Biggs","WJ","V40",1,55,null,"Chris Mella","HRC","S",1,44,19,null,"Jonathan Hall","WJ","V40",1,48,19,null,"Lee Pickering","BS","V50",1,83,19]
["Bradley Power","HRC","S",1,56,null,"Timothy Wood","HRC","S",1,46,20,null,"Adam Watson","WJ","V40",1,52,20,null,"John Taylor","HRC","V50",1,88,20]
["James Randall","WJ","V40",1,57,null,"Bradley Power","HRC","S",1,56,21,null,"James Dowsett","HRC","V40",1,53,21]
["Samuel Brennan","BS","S",1,58,null,"Samuel Brennan","BS","S",1,58,22,null,"Andrew Biggs","WJ","V40",1,55,22]
["Jamie Smith","BS","V40",1,59,null,"Sam Spurgeon","HRC","S",1,60,23,null,"James Randall","WJ","V40",1,57,23]
["Sam Spurgeon","HRC","S",1,60,null,"Lee Boswell","BS","S",1,70,24,null,"Jamie Smith","BS","V40",1,59,24]
["Peter Beatty","BS","V60",1,61,null,"Colin Langbridge","HRC","S",1,85,25,null,"NEIL GAGE","BS","V40",1,65,25]
["John Kennedy","BS","V50",1,62,null,null,null,null,null,null,null,null,"Richard Foweraker","BS","V40",1,66,26]
["Paul Brennan","WJ","V50",1,63,null,null,null,null,null,null,null,null,"Paul Andrew","BS","V40",1,72,27]
["Neil Halls","SS","V50",1,64,null,null,null,null,null,null,null,null,"Shane Tomlinson","BS","V40",1,76,28]
["NEIL GAGE","BS","V40",1,65,null,null,null,null,null,null,null,null,"Alistair Cooke","SS","V40",1,77,29]
["Richard Foweraker","BS","V40",1,66,null,null,null,null,null,null,null,null,"Jamie Olsen Ferreira","HRC","V40",1,78,30]
["Miguel Luque","HRC","V50",1,67,null,null,null,null,null,null,null,null,"Michael Robey","HRC","V40",1,87,31]
["John Bull","HRC","V50",1,68,null,null,null,null,null,null,null,null,"Tj Rowlands","HRC","V40",1,93,32]
["Peter Winfield","BS","V60",1,69]
["Lee Boswell","BS","S",1,70]
["Sean Flynn","HRC","V60",1,71]
["Paul Andrew","BS","V40",1,72]
["Arthur Oliva","SS","V60",1,73]
["Paul Dixon","HRC","V50",1,74]
["Gary Mead","HRC","V50",1,75]
["Shane Tomlinson","BS","V40",1,76]
["Alistair Cooke","SS","V40",1,77]
["Jamie Olsen Ferreira","HRC","V40",1,78]
["John Tennant","HRC","V70",1,79]
["Chris Brolly","BS","V60",1,80]
["Clive Smith","WJ","V60",1,81]
["Alan Rafferty","WJ","V60",1,82]
["Lee Pickering","BS","V50",1,83]
["Ian Penson","BS","V60",1,84]
["Colin Langbridge","HRC","S",1,85]
["Roger Partridge","WJ","V60",1,86]
["Michael Robey","HRC","V40",1,87]
["John Taylor","HRC","V50",1,88]
["Nick Cheal","WJ","V70",1,89]
["Phil Hudson","WJ","V60",1,90]
["Jacobus Van Der Poel","HRC","V70",1,91]
["Colin Naman","WJ","V70",1,92]
["Tj Rowlands","HRC","V40",1,93]

{"sheet":"Race 2-Ladies","index":9,"n_rows":57,"n_cols":40,"rows_kept":57,"cut":false,"hidden":false,"merged":[]}
["Overall",null,null,null,null,null,"Ware Joggers",null,null,null,null,null,null,"Bishop's Stortford",null,null,null,null,null,null,"Saffron Striders",null,null,null,null,null,null,"Harlow Running & Tri Club"]
["Name","Club","Age Category","Claim","Position",null,"Name","Club","Age Category","Claim","Position",null,null,"Name","Club","Age Category","Claim","Position",null,null,"Name","Club","Age Category","Claim","Position",null,null,"Name","Club","Age Category","Claim","Position",null,null,"Name","Club","Age Category","Claim","Position"]
["Katy Woodward","WJ","V35",1,1,null,"Katy Woodward","WJ","V35",1,1,1,null,"Vicky Simpson","BS","V45",1,5,5,null,"Zib Gotto","SS","V45",1,7,7,null,"Terri Wiley","HRC","V35",1,2,2]
["Terri Wiley","HRC","V35",1,2,null,"Katrina Dobson","WJ","V35",1,3,3,null,"Sophie Barc","BS","V45",1,6,6,null,"Anne Dawson","SS","V35",1,21,21,null,"Catherine Ridge","HRC","V35",1,10,10]
["Katrina Dobson","WJ","V35",1,3,null,"Marianne Mitchell","WJ","V45",1,4,4,null,"Eilidh Malcolm","BS","S",1,8,8,null,"Charlotte Diggins","SS","V45",1,33,33,null,"Fieke Blackwell","HRC","V35",1,11,11]
["Marianne Mitchell","WJ","V45",1,4,null,"Susan Millward","WJ","V45",1,9,9,null,"Lindsey Ireland","BS","S",1,13,13,null,null,null,null,null,null,null,null,"Donna Milton","HRC","V45",1,14,14]
["Vicky Simpson","BS","V45",1,5,null,"Lucy Dupuis","WJ","V45",1,12,12,null,"Chloe Boyce","BS","V45",1,29,29,null,null,null,null,null,null,null,null,"Linda Helm-Manley","HRC","V55",1,17,17]
["Sophie Barc","BS","V45",1,6,null,"Anthea Francis","WJ","V45",1,15,15,null,"Jen Burke","BS","V35",1,34,34,null,null,null,null,null,null,null,null,"Allison Beeton","HRC","V55",1,18,18]
["Zib Gotto","SS","V45",1,7,null,"Gemma Charville","WJ","V35",1,16,16,null,"Peijie Zhu","BS","V45",1,35,35,null,null,null,null,null,null,null,null,"Ella Wager","HRC","S",1,19,19]
["Eilidh Malcolm","BS","S",1,8,null,"Jemina Punni","WJ","V35",1,23,23,null,"Ellen Brooks","BS","V45",1,39,39,null,null,null,null,null,null,null,null,"Louise Cootes","HRC","V35",1,20,20]
["Susan Millward","WJ","V45",1,9,null,"Lisa Roberts","WJ","V45",1,24,null,null,"Frances Iwaschkin","BS","V45",1,42,null,null,null,null,null,null,null,null,null,"Sandra Rust","HRC","V55",1,22]
["Catherine Ridge","HRC","V35",1,10,null,"Pamela Wilson","WJ","V65",1,27,null,null,"Victoria Cutler","BS","V35",1,48,null,null,null,null,null,null,null,null,null,"Kerry Mavris","HRC","V45",1,25]
["Fieke Blackwell","HRC","V35",1,11,null,"Jennifer Evans","WJ","S",1,28,null,null,"Sarah Godfrey","BS","V45",1,49,null,null,null,null,null,null,null,null,null,"Louise Kedge","HRC","V35",1,26]
["Lucy Dupuis","WJ","V45",1,12,null,"Sam Rowe","WJ","V55",1,30,null,null,"Fay Dodgen","BS","V55",1,51,null,null,null,null,null,null,null,null,null,"Gail Nicholls","HRC","V55",1,31]
["Lindsey Ireland","BS","S",1,13,null,"Deborah Amies","WJ","V55",1,32,null,null,"Jennifer Frewin","BS","V45",1,52,null,null,null,null,null,null,null,null,null,"Kelly Mcgill","HRC","V45",1,36]
["Donna Milton","HRC","V45",1,14,null,"Tracy Brennan","WJ","V45",1,43,null,null,"Clare Gallagher","BS","V45",1,53,null,null,null,null,null,null,null,null,null,"Emma Luck","HRC","V45",1,37]
["Anthea Francis","WJ","V45",1,15,null,"Jeanette Collins","WJ","V55",1,44,null,null,null,null,null,null,null,null,null,null,null,null,null,null,null,null,"Brady Ramsay","HRC","V45",1,38]
["Gemma Charville","WJ","V35",1,16,null,"Paula Gollop","WJ","V35",1,45,null,null,null,null,null,null,null,null,null,null,null,null,null,null,null,null,"Anna Robey","HRC","V35",1,40]
["Linda Helm-Manley","HRC","V55",1,17,null,"Anne Ramsden","WJ","V65",1,46,null,null,null,null,null,null,null,null,null,null,null,null,null,null,null,null,"Lucy Mella-Davis","HRC","V35",1,41]
["Allison Beeton","HRC","V55",1,18,null,"Jenni Viner","WJ","V65",1,47]
["Ella Wager","HRC","S",1,19,null,"Jacqui Barnard","WJ","V55",1,50]
["Louise Cootes","HRC","V35",1,20,null,"Rosalind Hitchen","WJ","V55",1,54]
["Anne Dawson","SS","V35",1,21,null,"Claron Riviere","WJ","V65",1,55]
["Sandra Rust","HRC","V55",1,22]
["Jemina Punni","WJ","V35",1,23]
["Lisa Roberts","WJ","V45",1,24,null,"Senior",null,null,null,null,null,null,"V35",null,null,null,null,null,null,"V45",null,null,null,null,null,null,"V55",null,null,null,null,null,null,"V65"]
["Kerry Mavris","HRC","V45",1,25,null,"Name","Club","Age Category","Claim","Overall Position","Category Position",null,"Name","Club","Age Category","Claim","Overall Position","Category Position",null,"Name","Club","Age Category","Claim","Overall Position","Category Position",null,"Name","Club","Age Category","Claim","Overall Position","Category Position",null,"Name","Club","Age Category","Claim","Overall Position","Category Position"]
["Louise Kedge","HRC","V35",1,26,null,"Eilidh Malcolm","BS","S",1,8,1,null,"Katy Woodward","WJ","V35",1,1,1,null,"Marianne Mitchell","WJ","V45",1,4,1,null,"Linda Helm-Manley","HRC","V55",1,17,1,null,"Pamela Wilson","WJ","V65",1,27,1]
["Pamela Wilson","WJ","V65",1,27,null,"Lindsey Ireland","BS","S",1,13,2,null,"Terri Wiley","HRC","V35",1,2,2,null,"Vicky Simpson","BS","V45",1,5,2,null,"Allison Beeton","HRC","V55",1,18,2,null,"Anne Ramsden","WJ","V65",1,46,2]
["Jennifer Evans","WJ","S",1,28,null,"Ella Wager","HRC","S",1,19,3,null,"Katrina Dobson","WJ","V35",1,3,3,null,"Sophie Barc","BS","V45",1,6,3,null,"Sandra Rust","HRC","V55",1,22,3,null,"Jenni Viner","WJ","V65",1,47,3]
["Chloe Boyce","BS","V45",1,29,null,"Jennifer Evans","WJ","S",1,28,4,null,"Catherine Ridge","HRC","V35",1,10,4,null,"Zib Gotto","SS","V45",1,7,4,null,"Sam Rowe","WJ","V55",1,30,4,null,"Claron Riviere","WJ","V65",1,55,4]
["Sam Rowe","WJ","V55",1,30,null,null,null,null,null,null,null,null,"Fieke Blackwell","HRC","V35",1,11,5,null,"Susan Millward","WJ","V45",1,9,5,null,"Gail Nicholls","HRC","V55",1,31,5]
["Gail Nicholls","HRC","V55",1,31,null,null,null,null,null,null,null,null,"Gemma Charville","WJ","V35",1,16,6,null,"Lucy Dupuis","WJ","V45",1,12,6,null,"Deborah Amies","WJ","V55",1,32,6]
["Deborah Amies","WJ","V55",1,32,null,null,null,null,null,null,null,null,"Louise Cootes","HRC","V35",1,20,7,null,"Donna Milton","HRC","V45",1,14,7,null,"Jeanette Collins","WJ","V55",1,44,7]
["Charlotte Diggins","SS","V45",1,33,null,null,null,null,null,null,null,null,"Anne Dawson","SS","V35",1,21,8,null,"Anthea Francis","WJ","V45",1,15,8,null,"Jacqui Barnard","WJ","V55",1,50,8]
["Jen Burke","BS","V35",1,34,null,null,null,null,null,null,null,null,"Jemina Punni","WJ","V35",1,23,9,null,"Lisa Roberts","WJ","V45",1,24,9,null,"Fay Dodgen","BS","V55",1,51,9]
["Peijie Zhu","BS","V45",1,35,null,null,null,null,null,null,null,null,"Louise Kedge","HRC","V35",1,26,10,null,"Kerry Mavris","HRC","V45",1,25,10,null,"Rosalind Hitchen","WJ","V55",1,54,10]
["Kelly Mcgill","HRC","V45",1,36,null,null,null,null,null,null,null,null,"Jen Burke","BS","V35",1,34,11,null,"Chloe Boyce","BS","V45",1,29,11]
["Emma Luck","HRC","V45",1,37,null,null,null,null,null,null,null,null,"Anna Robey","HRC","V35",1,40,12,null,"Charlotte Diggins","SS","V45",1,33,12]
["Brady Ramsay","HRC","V45",1,38,null,null,null,null,null,null,null,null,"Lucy Mella-Davis","HRC","V35",1,41,13,null,"Peijie Zhu","BS","V45",1,35,13]
["Ellen Brooks","BS","V45",1,39,null,null,null,null,null,null,null,null,"Paula Gollop","WJ","V35",1,45,14,null,"Kelly Mcgill","HRC","V45",1,36,14]
["Anna Robey","HRC","V35",1,40,null,null,null,null,null,null,null,null,"Victoria Cutler","BS","V35",1,48,15,null,"Emma Luck","HRC","V45",1,37,15]
["Lucy Mella-Davis","HRC","V35",1,41,null,null,null,null,null,null,null,null,null,null,null,null,null,null,null,"Brady Ramsay","HRC","V45",1,38,16]
["Frances Iwaschkin","BS","V45",1,42,null,null,null,null,null,null,null,null,null,null,null,null,null,null,null,"Ellen Brooks","BS","V45",1,39,17]
["Tracy Brennan","WJ","V45",1,43,null,null,null,null,null,null,null,null,null,null,null,null,null,null,null,"Frances Iwaschkin","BS","V45",1,42,18]
["Jeanette Collins","WJ","V55",1,44,null,null,null,null,null,null,null,null,null,null,null,null,null,null,null,"Tracy Brennan","WJ","V45",1,43,19]
["Paula Gollop","WJ","V35",1,45,null,null,null,null,null,null,null,null,null,null,null,null,null,null,null,"Sarah Godfrey","BS","V45",1,49,20]
["Anne Ramsden","WJ","V65",1,46,null,null,null,null,null,null,null,null,null,null,null,null,null,null,null,"Jennifer Frewin","BS","V45",1,52,21]
["Jenni Viner","WJ","V65",1,47,null,null,null,null,null,null,null,null,null,null,null,null,null,null,null,"Clare Gallagher","BS","V45",1,53,22]
["Victoria Cutler","BS","V35",1,48]
["Sarah Godfrey","BS","V45",1,49]
["Jacqui Barnard","WJ","V55",1,50]
["Fay Dodgen","BS","V55",1,51]
["Jennifer Frewin","BS","V45",1,52]
["Clare Gallagher","BS","V45",1,53]
["Rosalind Hitchen","WJ","V55",1,54]
["Claron Riviere","WJ","V65",1,55]

{"sheet":"Race 3-Men","index":10,"n_rows":97,"n_cols":40,"rows_kept":97,"cut":false,"hidden":false,"merged":[]}
["Overall",null,null,null,null,null,"Ware Joggers",null,null,null,null,null,null,"Bishop's Stortford",null,null,null,null,null,null,"Saffron Striders",null,null,null,null,null,null,"Harlow Running & Tri Club"]
["Name","Club","Age Category","Claim","Position",null,"Name","Club","Age Category","Claim","Position",null,null,"Name","Club","Age Category","Claim","Position",null,null,"Name","Club","Age Category","Claim","Position",null,null,"Name","Club","Age Category","Claim","Position",null,null,"Name","Club","Age Category","Claim","Position"]
["Michael Waddington","WJ","S",1,1,null,"Michael Waddington","WJ","S",1,1,1,null,"Dylan Van Wyk","BS","S",1,3,3,null,"Bryn Reynolds","SS","S",2,4,4,null,"Rob Lowe","HRC","V50",1,9,9]
["Andrew Mynott","WJ","V40",1,2,null,"Andrew Mynott","WJ","V40",1,2,2,null,"Robert Thorpe","BS","V50",1,11,11,null,"Tim McMahon","SS","V40",1,20,20,null,"Martyn Coulter","HRC","S",1,16,16]
["Dylan Van Wyk","BS","S",1,3,null,"Ian Perrins","WJ","S",1,5,5,null,"Keir Mann","BS","V40",1,14,14,null,"Chris Dodge","SS","V50",1,23,23,null,"Kirk Crudgington","HRC","V40",1,22,22]
["Bryn Reynolds","SS","S",2,4,null,"David Craddock","WJ","S",1,6,6,null,"Henry Ward","BS","S",1,15,15,null,"Matthew Billis","SS","V40",1,26,26,null,"Ryan Smith","HRC","V40",1,25,25]
["Ian Perrins","WJ","S",1,5,null,"Liam Struwe","WJ","S",1,7,7,null,"Peter Jurd","BS","V40",1,21,21,null,"Ian MacDougall","SS","V60",1,28,28,null,"Benjamin Usher","HRC","S",1,30,30]
["David Craddock","WJ","S",1,6,null,"Tim Brignall","WJ","S",1,8,8,null,"Gary Jones","BS","V50",1,36,36,null,"Nigel Flynn","SS","V40",1,34,34,null,"Lee Webber","HRC","V40",1,39,39]
["Liam Struwe","WJ","S",1,7,null,"Kevin Francis","WJ","V40",1,10,10,null,"Gordon Mcleod","BS","S",1,38,38,null,"Marco Arcidiacono","SS","V50",1,35,35,null,"Chris Burgess","HRC","V50",1,45,45]
["Tim Brignall","WJ","S",1,8,null,"Nick Axam","WJ","V40",1,12,12,null,"Lee Boswell","BS","S",1,48,48,null,"Grant Sherbourne","SS","S",1,40,40,null,"Darren Tiley","HRC","V50",1,49,49]
["Rob Lowe","HRC","V50",1,9,null,"Will Breese","WJ","S",1,13,null,null,"Peter Beatty","BS","V60",1,50,null,null,"Ken Cumin","SS","V40",1,42,null,null,"Iain Bulloch","HRC","V40",1,55]
["Kevin Francis","WJ","V40",1,10,null,"Neil Bull","WJ","V40",1,17,null,null,"Jamie Smith","BS","V40",1,52,null,null,"Alan Jones","SS","V50",1,47,null,null,"John Bull","HRC","V50",1,59]
["Robert Thorpe","BS","V50",1,11,null,"Mark Ford","WJ","S",1,18,null,null,"John Kennedy","BS","V50",1,54,null,null,"Toby Lumsden","SS","V60",1,51,null,null,"Miguel Luque","HRC","V50",1,62]
["Nick Axam","WJ","V40",1,12,null,"Kevin Sambridge","WJ","V50",1,19,null,null,"Richard Foweraker","BS","V40",1,60,null,null,"Ranky Barbelis","SS","S",1,53,null,null,"Paul Dixon","HRC","V50",1,70]
["Will Breese","WJ","S",1,13,null,"Stefan Gauntlett","WJ","S",1,24,null,null,"Stuart Longley","BS","V40",1,66,null,null,"Neil Halls","SS","V50",1,57,null,null,"Gary Mead","HRC","V50",1,79]
["Keir Mann","BS","V40",1,14,null,"Alexander Chappell","WJ","S",1,27,null,null,"Matthieu Militon","BS","V50",1,67,null,null,"Lewis Elmes","SS","S",1,58,null,null,"Alan Cootes","HRC","V60",1,87]
["Henry Ward","BS","S",1,15,null,"Andrew Kavanagh","WJ","S",1,29,null,null,"Peter Winfield","BS","V60",1,71,null,null,"Nigel Poad","SS","V50",1,61,null,null,"Alan Godbold","HRC","V50",1,95]
["Martyn Coulter","HRC","S",1,16,null,"Jamie Higgs","WJ","V40",1,31,null,null,"Paul Andrew","BS","V40",1,72,null,null,"Jayson Shuter","SS","S",2,63]
["Neil Bull","WJ","V40",1,17,null,"Andrew Biggs","WJ","V40",1,32,null,null,"David Broughton","BS","V50",1,73,null,null,"Tony Bacon","SS","V40",2,64]
["Mark Ford","WJ","S",1,18,null,"Russell Cook","WJ","S",1,33,null,null,"Neal Groves","BS","V40",1,74,null,null,"John James","SS","V60",1,65]
["Kevin Sambridge","WJ","V50",1,19,null,"Mark Sanz","WJ","V50",1,37,null,null,"Paul Walker","BS","V50",1,76,null,null,"Arthur Oliva","SS","V60",1,68]
["Tim McMahon","SS","V40",1,20,null,"Steven Argent","WJ","V60",1,41,null,null,"Paul Dearlove","BS","V50",1,78,null,null,"Thomas Dudson","SS","S",1,69]
["Peter Jurd","BS","V40",1,21,null,"Alan Taylor","WJ","V50",1,43,null,null,"Martin Howe","BS","V60",1,81,null,null,"Mark Fitzhenry","SS","V60",1,83]
["Kirk Crudgington","HRC","V40",1,22,null,"Adam Watson","WJ","V40",1,44,null,null,"Andrew Pooley","BS","V50",1,84,null,null,"Iain Rogers","SS","V50",1,91]
["Chris Dodge","SS","V50",1,23,null,"James Randall","WJ","V40",1,46,null,null,"Shane Tomlinson","BS","V40",1,85]
["Stefan Gauntlett","WJ","S",1,24,null,"Paul Brennan","WJ","V50",1,56,null,null,"Chris Brolly","BS","V60",1,86]
["Ryan Smith","HRC","V40",1,25,null,"Clive Smith","WJ","V60",1,75,null,null,"Ian Penson","BS","V60",1,89]
["Matthew Billis","SS","V40",1,26,null,"Simon Joyce","WJ","V50",1,77,null,null,"Stuart Davenport","BS","V50",1,90]
["Alexander Chappell","WJ","S",1,27,null,"Phillip Barnard","WJ","V60",1,80,null,null,"Rohit Dayama","BS","V40",1,94]
["Ian MacDougall","SS","V60",1,28,null,"Roger Partridge","WJ","V60",1,88]
["Andrew Kavanagh","WJ","S",1,29,null,"Nick Cheal","WJ","V70",1,92]
["Benjamin Usher","HRC","S",1,30,null,"Colin Naman","WJ","V70",1,93]
["Jamie Higgs","WJ","V40",1,31]
["Andrew Biggs","WJ","V40",1,32]
["Russell Cook","WJ","S",1,33,null,"Senior",null,null,null,null,null,null,"V40",null,null,null,null,null,null,"V50",null,null,null,null,null,null,"V60",null,null,null,null,null,null,"V70"]
["Nigel Flynn","SS","V40",1,34,null,"Name","Club","Age Category","Claim","Overall Position","Category Position",null,"Name","Club","Age Category","Claim","Overall Position","Category Position",null,"Name","Club","Age Category","Claim","Overall Position","Category Position",null,"Name","Club","Age Category","Claim","Overall Position","Category Position",null,"Name","Club","Age Category","Claim","Overall Position","Category Position"]
["Marco Arcidiacono","SS","V50",1,35,null,"Michael Waddington","WJ","S",1,1,1,null,"Andrew Mynott","WJ","V40",1,2,1,null,"Rob Lowe","HRC","V50",1,9,1,null,"Ian MacDougall","SS","V60",1,28,1,null,"Nick Cheal","WJ","V70",1,92,1]
["Gary Jones","BS","V50",1,36,null,"Dylan Van Wyk","BS","S",1,3,2,null,"Kevin Francis","WJ","V40",1,10,2,null,"Robert Thorpe","BS","V50",1,11,2,null,"Steven Argent","WJ","V60",1,41,2,null,"Colin Naman","WJ","V70",1,93,2]
["Mark Sanz","WJ","V50",1,37,null,"Bryn Reynolds","SS","S",2,4,3,null,"Nick Axam","WJ","V40",1,12,3,null,"Kevin Sambridge","WJ","V50",1,19,3,null,"Peter Beatty","BS","V60",1,50,3]
["Gordon Mcleod","BS","S",1,38,null,"Ian Perrins","WJ","S",1,5,4,null,"Keir Mann","BS","V40",1,14,4,null,"Chris Dodge","SS","V50",1,23,4,null,"Toby Lumsden","SS","V60",1,51,4]
["Lee Webber","HRC","V40",1,39,null,"David Craddock","WJ","S",1,6,5,null,"Neil Bull","WJ","V40",1,17,5,null,"Marco Arcidiacono","SS","V50",1,35,5,null,"John James","SS","V60",1,65,5]
["Grant Sherbourne","SS","S",1,40,null,"Liam Struwe","WJ","S",1,7,6,null,"Tim McMahon","SS","V40",1,20,6,null,"Gary Jones","BS","V50",1,36,6,null,"Arthur Oliva","SS","V60",1,68,6]
["Steven Argent","WJ","V60",1,41,null,"Tim Brignall","WJ","S",1,8,7,null,"Peter Jurd","BS","V40",1,21,7,null,"Mark Sanz","WJ","V50",1,37,7,null,"Peter Winfield","BS","V60",1,71,7]
["Ken Cumin","SS","V40",1,42,null,"Will Breese","WJ","S",1,13,8,null,"Kirk Crudgington","HRC","V40",1,22,8,null,"Alan Taylor","WJ","V50",1,43,8,null,"Clive Smith","WJ","V60",1,75,8]
["Alan Taylor","WJ","V50",1,43,null,"Henry Ward","BS","S",1,15,9,null,"Ryan Smith","HRC","V40",1,25,9,null,"Chris Burgess","HRC","V50",1,45,9,null,"Phillip Barnard","WJ","V60",1,80,9]
["Adam Watson","WJ","V40",1,44,null,"Martyn Coulter","HRC","S",1,16,10,null,"Matthew Billis","SS","V40",1,26,10,null,"Alan Jones","SS","V50",1,47,10,null,"Martin Howe","BS","V60",1,81,10]
["Chris Burgess","HRC","V50",1,45,null,"Mark Ford","WJ","S",1,18,11,null,"Jamie Higgs","WJ","V40",1,31,11,null,"Darren Tiley","HRC","V50",1,49,11,null,"Mark Fitzhenry","SS","V60",1,83,11]
["James Randall","WJ","V40",1,46,null,"Stefan Gauntlett","WJ","S",1,24,12,null,"Andrew Biggs","WJ","V40",1,32,12,null,"John Kennedy","BS","V50",1,54,12,null,"Chris Brolly","BS","V60",1,86,12]
["Alan Jones","SS","V50",1,47,null,"Alexander Chappell","WJ","S",1,27,13,null,"Nigel Flynn","SS","V40",1,34,13,null,"Paul Brennan","WJ","V50",1,56,13,null,"Alan Cootes","HRC","V60",1,87,13]
["Lee Boswell","BS","S",1,48,null,"Andrew Kavanagh","WJ","S",1,29,14,null,"Lee Webber","HRC","V40",1,39,14,null,"Neil Halls","SS","V50",1,57,14,null,"Roger Partridge","WJ","V60",1,88,14]
["Darren Tiley","HRC","V50",1,49,null,"Benjamin Usher","HRC","S",1,30,15,null,"Ken Cumin","SS","V40",1,42,15,null,"John Bull","HRC","V50",1,59,15,null,"Ian Penson","BS","V60",1,89,15]
["Peter Beatty","BS","V60",1,50,null,"Russell Cook","WJ","S",1,33,16,null,"Adam Watson","WJ","V40",1,44,16,null,"Nigel Poad","SS","V50",1,61,16]
["Toby Lumsden","SS","V60",1,51,null,"Gordon Mcleod","BS","S",1,38,17,null,"James Randall","WJ","V40",1,46,17,null,"Miguel Luque","HRC","V50",1,62,17]
["Jamie Smith","BS","V40",1,52,null,"Grant Sherbourne","SS","S",1,40,18,null,"Jamie Smith","BS","V40",1,52,18,null,"Matthieu Militon","BS","V50",1,67,18]
["Ranky Barbelis","SS","S",1,53,null,"Lee Boswell","BS","S",1,48,19,null,"Iain Bulloch","HRC","V40",1,55,19,null,"Paul Dixon","HRC","V50",1,70,19]
["John Kennedy","BS","V50",1,54,null,"Ranky Barbelis","SS","S",1,53,20,null,"Richard Foweraker","BS","V40",1,60,20,null,"David Broughton","BS","V50",1,73,20]
["Iain Bulloch","HRC","V40",1,55,null,"Lewis Elmes","SS","S",1,58,21,null,"Tony Bacon","SS","V40",2,64,21,null,"Paul Walker","BS","V50",1,76,21]
["Paul Brennan","WJ","V50",1,56,null,"Jayson Shuter","SS","S",2,63,22,null,"Stuart Longley","BS","V40",1,66,22,null,"Simon Joyce","WJ","V50",1,77,22]
["Neil Halls","SS","V50",1,57,null,"Thomas Dudson","SS","S",1,69,23,null,"Paul Andrew","BS","V40",1,72,23,null,"Paul Dearlove","BS","V50",1,78,23]
["Lewis Elmes","SS","S",1,58,null,null,null,null,null,null,null,null,"Neal Groves","BS","V40",1,74,24,null,"Gary Mead","HRC","V50",1,79,24]
["John Bull","HRC","V50",1,59,null,null,null,null,null,null,null,null,"Shane Tomlinson","BS","V40",1,85,25,null,"Paul Kemmitt","SS ","V50",1,82,25]
["Richard Foweraker","BS","V40",1,60,null,null,null,null,null,null,null,null,"Rohit Dayama","BS","V40",1,94,26,null,"Andrew Pooley","BS","V50",1,84,26]
["Nigel Poad","SS","V50",1,61,null,null,null,null,null,null,null,null,null,null,null,null,null,null,null,"Stuart Davenport","BS","V50",1,90,27]
["Miguel Luque","HRC","V50",1,62,null,null,null,null,null,null,null,null,null,null,null,null,null,null,null,"Iain Rogers","SS","V50",1,91,28]
["Jayson Shuter","SS","S",2,63,null,null,null,null,null,null,null,null,null,null,null,null,null,null,null,"Alan Godbold","HRC","V50",1,95,29]
["Tony Bacon","SS","V40",2,64]
["John James","SS","V60",1,65]
["Stuart Longley","BS","V40",1,66]
["Matthieu Militon","BS","V50",1,67]
["Arthur Oliva","SS","V60",1,68]
["Thomas Dudson","SS","S",1,69]
["Paul Dixon","HRC","V50",1,70]
["Peter Winfield","BS","V60",1,71]
["Paul Andrew","BS","V40",1,72]
["David Broughton","BS","V50",1,73]
["Neal Groves","BS","V40",1,74]
["Clive Smith","WJ","V60",1,75]
["Paul Walker","BS","V50",1,76]
["Simon Joyce","WJ","V50",1,77]
["Paul Dearlove","BS","V50",1,78]
["Gary Mead","HRC","V50",1,79]
["Phillip Barnard","WJ","V60",1,80]
["Martin Howe","BS","V60",1,81]
["Paul Kemmitt","SS ","V50",1,82]
["Mark Fitzhenry","SS","V60",1,83]
["Andrew Pooley","BS","V50",1,84]
["Shane Tomlinson","BS","V40",1,85]
["Chris Brolly","BS","V60",1,86]
["Alan Cootes","HRC","V60",1,87]
["Roger Partridge","WJ","V60",1,88]
["Ian Penson","BS","V60",1,89]
["Stuart Davenport","BS","V50",1,90]
["Iain Rogers","SS","V50",1,91]
["Nick Cheal","WJ","V70",1,92]
["Colin Naman","WJ","V70",1,93]
["Rohit Dayama","BS","V40",1,94]
["Alan Godbold","HRC","V50",1,95]

{"sheet":"Race 3-Ladies","index":11,"n_rows":69,"n_cols":40,"rows_kept":69,"cut":false,"hidden":false,"merged":[]}
["Overall",null,null,null,null,null,"Ware Joggers",null,null,null,null,null,null,"Bishop's Stortford",null,null,null,null,null,null,"Saffron Striders",null,null,null,null,null,null,"Harlow Running & Tri Club"]
["Name","Club","Age Category","Claim","Position",null,"Name","Club","Age Category","Claim","Position",null,null,"Name","Club","Age Category","Claim","Position",null,null,"Name","Club","Age Category","Claim","Position",null,null,"Name","Club","Age Category","Claim","Position",null,null,"Name","Club","Age Category","Claim","Position"]
["Katy Woodward","WJ","V35",1,1,null,"Katy Woodward","WJ","V35",1,1,1,null,"Elizabeth Bellinger","BS","V45",1,3,3,null,"Flo Greatrix","SS","S",1,9,9,null,"Terri Wiley","HRC","V35",1,2,2]
["Terri Wiley","HRC","V35",1,2,null,"Katrina Dobson","WJ","V35",1,4,4,null,"Vicky Simpson","BS","V45",1,5,5,null,"Jemma Jessup","SS","S",1,12,12,null,"Donna Milton","HRC","V45",1,14,14]
["Elizabeth Bellinger","BS","V45",1,3,null,"Susan Millward","WJ","V45",1,6,6,null,"Joanna Jurd","BS","V45",1,7,7,null,"Zib Gotto","SS","V45",1,18,18,null,"Linda Helm-Manley","HRC","V55",1,20,20]
["Katrina Dobson","WJ","V35",1,4,null,"Lucy Dupuis","WJ","V45",1,10,10,null,"Eilidh Malcolm","BS","S",1,8,8,null,"Anne Dawson","SS","V35",1,27,27,null,"Allison Beeton","HRC","V55",1,21,21]
["Vicky Simpson","BS","V45",1,5,null,"Cate Campany","WJ","V55",1,13,13,null,"Emily Clancey","BS","S",1,11,11,null,"Kerry Harrington","SS","V45",1,28,28,null,"Louise Cootes","HRC","V35",1,23,23]
["Susan Millward","WJ","V45",1,6,null,"Gemma Charville","WJ","V35",1,15,15,null,"Lucy Robinson","BS","V45",1,16,16,null,"Charlotte Diggins","SS","V45",1,38,38,null,"Louise Kedge","HRC","V35",1,30,30]
["Joanna Jurd","BS","V45",1,7,null,"Anthea Francis","WJ","V45",1,19,19,null,"Lindsey Ireland","BS","S",1,17,17,null,"Rachel Everitt","SS","S",1,42,42,null,"Kerry Mavris","HRC","V45",1,34,34]
["Eilidh Malcolm","BS","S",1,8,null,"Emma Mulley","WJ","V35",1,22,22,null,"Paula Beades","BS","V45",1,24,24,null,"Margit Wendelberger James","SS","V55",1,50,50,null,"Michelle Hyde","HRC","V35",1,35,35]
["Flo Greatrix","SS","S",1,9,null,"Jemina Punni","WJ","V35",1,25,null,null,"Marie Hockley","BS","V55",1,29,null,null,null,null,null,null,null,null,null,"Kelly Mcgill","HRC","V45",1,36]
["Lucy Dupuis","WJ","V45",1,10,null,"Pamela Wilson","WJ","V65",1,26,null,null,"Tory Foot","BS","S",1,31,null,null,null,null,null,null,null,null,null,"Brady Ramsay","HRC","V45",1,41]
["Emily Clancey","BS","S",1,11,null,"Deborah Amies","WJ","V55",1,32,null,null,"Jen Burke","BS","V35",1,39,null,null,null,null,null,null,null,null,null,"Sandra Webber","HRC","V35",1,48]
["Jemma Jessup","SS","S",1,12,null,"Sam Rowe","WJ","V55",1,33,null,null,"Ellen Brooks","BS","V45",1,40,null,null,null,null,null,null,null,null,null,"Luella Dixon","HRC","V55",1,60]
["Cate Campany","WJ","V55",1,13,null,"Jennifer Evans","WJ","S",1,37,null,null,"Jos Ashpole","BS","V45",1,43,null,null,null,null,null,null,null,null,null,"Selina Morgan","HRC","V35",1,61]
["Donna Milton","HRC","V45",1,14,null,"Sue Taylor","WJ","V45",1,44,null,null,"Patricia Poole","BS","V55",1,45,null,null,null,null,null,null,null,null,null,"Deborah Pomphret","HRC","V55",1,67]
["Gemma Charville","WJ","V35",1,15,null,"Jill Patel","WJ","V55",1,46,null,null,"Serena Beresford","BS","V45",1,47]
["Lucy Robinson","BS","V45",1,16,null,"Tracy Brennan","WJ","V45",1,49,null,null,"Julia Fonnereau","BS","V55",1,51]
["Lindsey Ireland","BS","S",1,17,null,"Lynsay Evans","WJ","V55",1,52,null,null,"Jenny Brayshaw","BS","V65",1,54]
["Zib Gotto","SS","V45",1,18,null,"Paula Gollop","WJ","V35",1,53,null,null,"Jilly Palmer","BS","V55",1,56]
["Anthea Francis","WJ","V45",1,19,null,"Jeanette Collins","WJ","V55",1,55,null,null,"Stefanie Azuga","BS","V45",1,58]
["Linda Helm-Manley","HRC","V55",1,20,null,"Marcia Fisher","WJ","V45",1,57,null,null,"Fay Dodgen","BS","V55",1,59]
["Allison Beeton","HRC","V55",1,21,null,"Jacqui Barnard","WJ","V55",1,63,null,null,"Sarah Godfrey","BS","V45",1,62]
["Emma Mulley","WJ","V35",1,22,null,"Rosalind Hitchen","WJ","V55",1,66,null,null,"Victoria Cutler","BS","V35",1,64]
["Louise Cootes","HRC","V35",1,23,null,null,null,null,null,null,null,null,"Jennifer Frewin","BS","V45",1,65]
["Paula Beades","BS","V45",1,24]
["Jemina Punni","WJ","V35",1,25]
["Pamela Wilson","WJ","V65",1,26,null,"Senior",null,null,null,null,null,null,"V35",null,null,null,null,null,null,"V45",null,null,null,null,null,null,"V55",null,null,null,null,null,null,"V65"]
["Anne Dawson","SS","V35",1,27,null,"Name","Club","Age Category","Claim","Overall Position","Category Position",null,"Name","Club","Age Category","Claim","Overall Position","Category Position",null,"Name","Club","Age Category","Claim","Overall Position","Category Position",null,"Name","Club","Age Category","Claim","Overall Position","Category Position",null,"Name","Club","Age Category","Claim","Overall Position","Category Position"]
["Kerry Harrington","SS","V45",1,28,null,"Eilidh Malcolm","BS","S",1,8,1,null,"Katy Woodward","WJ","V35",1,1,1,null,"Elizabeth Bellinger","BS","V45",1,3,1,null,"Cate Campany","WJ","V55",1,13,1,null,"Pamela Wilson","WJ","V65",1,26,1]
["Marie Hockley","BS","V55",1,29,null,"Flo Greatrix","SS","S",1,9,2,null,"Terri Wiley","HRC","V35",1,2,2,null,"Vicky Simpson","BS","V45",1,5,2,null,"Linda Helm-Manley","HRC","V55",1,20,2,null,"Jenny Brayshaw","BS","V65",1,54,2]
["Louise Kedge","HRC","V35",1,30,null,"Emily Clancey","BS","S",1,11,3,null,"Katrina Dobson","WJ","V35",1,4,3,null,"Susan Millward","WJ","V45",1,6,3,null,"Allison Beeton","HRC","V55",1,21,3]
["Tory Foot","BS","S",1,31,null,"Jemma Jessup","SS","S",1,12,4,null,"Gemma Charville","WJ","V35",1,15,4,null,"Joanna Jurd","BS","V45",1,7,4,null,"Marie Hockley","BS","V55",1,29,4]
["Deborah Amies","WJ","V55",1,32,null,"Lindsey Ireland","BS","S",1,17,5,null,"Emma Mulley","WJ","V35",1,22,5,null,"Lucy Dupuis","WJ","V45",1,10,5,null,"Deborah Amies","WJ","V55",1,32,5]
["Sam Rowe","WJ","V55",1,33,null,"Tory Foot","BS","S",1,31,6,null,"Louise Cootes","HRC","V35",1,23,6,null,"Donna Milton","HRC","V45",1,14,6,null,"Sam Rowe","WJ","V55",1,33,6]
["Kerry Mavris","HRC","V45",1,34,null,"Jennifer Evans","WJ","S",1,37,7,null,"Jemina Punni","WJ","V35",1,25,7,null,"Lucy Robinson","BS","V45",1,16,7,null,"Patricia Poole","BS","V55",1,45,7]
["Michelle Hyde","HRC","V35",1,35,null,"Rachel Everitt","SS","S",1,42,8,null,"Anne Dawson","SS","V35",1,27,8,null,"Zib Gotto","SS","V45",1,18,8,null,"Jill Patel","WJ","V55",1,46,8]
["Kelly Mcgill","HRC","V45",1,36,null,null,null,null,null,null,null,null,"Louise Kedge","HRC","V35",1,30,9,null,"Anthea Francis","WJ","V45",1,19,9,null,"Margit Wendelberger James","SS","V55",1,50,9]
["Jennifer Evans","WJ","S",1,37,null,null,null,null,null,null,null,null,"Michelle Hyde","HRC","V35",1,35,10,null,"Paula Beades","BS","V45",1,24,10,null,"Julia Fonnereau","BS","V55",1,51,10]
["Charlotte Diggins","SS","V45",1,38,null,null,null,null,null,null,null,null,"Jen Burke","BS","V35",1,39,11,null,"Kerry Harrington","SS","V45",1,28,11,null,"Lynsay Evans","WJ","V55",1,52,11]
["Jen Burke","BS","V35",1,39,null,null,null,null,null,null,null,null,"Sandra Webber","HRC","V35",1,48,12,null,"Kerry Mavris","HRC","V45",1,34,12,null,"Jeanette Collins","WJ","V55",1,55,12]
["Ellen Brooks","BS","V45",1,40,null,null,null,null,null,null,null,null,"Paula Gollop","WJ","V35",1,53,13,null,"Kelly Mcgill","HRC","V45",1,36,13,null,"Jilly Palmer","BS","V55",1,56,13]
["Brady Ramsay","HRC","V45",1,41,null,null,null,null,null,null,null,null,"Selina Morgan","HRC","V35",1,61,14,null,"Charlotte Diggins","SS","V45",1,38,14,null,"Fay Dodgen","BS","V55",1,59,14]
["Rachel Everitt","SS","S",1,42,null,null,null,null,null,null,null,null,"Victoria Cutler","BS","V35",1,64,15,null,"Ellen Brooks","BS","V45",1,40,15,null,"Luella Dixon","HRC","V55",1,60,15]
["Jos Ashpole","BS","V45",1,43,null,null,null,null,null,null,null,null,null,null,null,null,null,null,null,"Brady Ramsay","HRC","V45",1,41,16,null,"Jacqui Barnard","WJ","V55",1,63,16]
["Sue Taylor","WJ","V45",1,44,null,null,null,null,null,null,null,null,null,null,null,null,null,null,null,"Jos Ashpole","BS","V45",1,43,17,null,"Rosalind Hitchen","WJ","V55",1,66,17]
["Patricia Poole","BS","V55",1,45,null,null,null,null,null,null,null,null,null,null,null,null,null,null,null,"Sue Taylor","WJ","V45",1,44,18,null,"Deborah Pomphret","HRC","V55",1,67,18]
["Jill Patel","WJ","V55",1,46,null,null,null,null,null,null,null,null,null,null,null,null,null,null,null,"Serena Beresford","BS","V45",1,47,19]
["Serena Beresford","BS","V45",1,47,null,null,null,null,null,null,null,null,null,null,null,null,null,null,null,"Tracy Brennan","WJ","V45",1,49,20]
["Sandra Webber","HRC","V35",1,48,null,null,null,null,null,null,null,null,null,null,null,null,null,null,null,"Marcia Fisher","WJ","V45",1,57,21]
["Tracy Brennan","WJ","V45",1,49,null,null,null,null,null,null,null,null,null,null,null,null,null,null,null,"Stefanie Azuga","BS","V45",1,58,22]
["Margit Wendelberger James","SS","V55",1,50,null,null,null,null,null,null,null,null,null,null,null,null,null,null,null,"Sarah Godfrey","BS","V45",1,62,23]
["Julia Fonnereau","BS","V55",1,51,null,null,null,null,null,null,null,null,null,null,null,null,null,null,null,"Jennifer Frewin","BS","V45",1,65,24]
["Lynsay Evans","WJ","V55",1,52]
["Paula Gollop","WJ","V35",1,53]
["Jenny Brayshaw","BS","V65",1,54]
["Jeanette Collins","WJ","V55",1,55]
["Jilly Palmer","BS","V55",1,56]
["Marcia Fisher","WJ","V45",1,57]
["Stefanie Azuga","BS","V45",1,58]
["Fay Dodgen","BS","V55",1,59]
["Luella Dixon","HRC","V55",1,60]
["Selina Morgan","HRC","V35",1,61]
["Sarah Godfrey","BS","V45",1,62]
["Jacqui Barnard","WJ","V55",1,63]
["Victoria Cutler","BS","V35",1,64]
["Jennifer Frewin","BS","V45",1,65]
["Rosalind Hitchen","WJ","V55",1,66]
["Deborah Pomphret","HRC","V55",1,67]

{"sheet":"Race 4-Men","index":12,"n_rows":77,"n_cols":40,"rows_kept":77,"cut":false,"hidden":false,"merged":[]}
["Overall",null,null,null,null,null,"Ware Joggers",null,null,null,null,null,null,"Bishop's Stortford",null,null,null,null,null,null,"Saffron Striders",null,null,null,null,null,null,"Harlow Running & Tri Club"]
["Name","Club","Age Category","Claim","Position",null,"Name","Club","Age Category","Claim","Position",null,null,"Name","Club","Age Category","Claim","Position",null,null,"Name","Club","Age Category","Claim","Position",null,null,"Name","Club","Age Category","Claim","Position",null,null,"Name","Club","Age Category","Claim","Position"]
["Michael Waddington","WJ","S",1,1,null,"Michael Waddington","WJ","S",1,1,1,null,"Samuel Pedley","BS","S",1,2,2,null,"Iain Henley","SS","V40",1,15,15,null,"Rob Lowe","HRC","V50",1,4,4]
["Samuel Pedley","BS","S",1,2,null,"Andrew Mynott","WJ","V40",1,3,3,null,"Robert Thorpe","BS","V50",1,14,14,null,"Tim McMahon","SS","V40",1,22,22,null,"Kirk Crudgington","HRC","V40",1,21,21]
["Andrew Mynott","WJ","V40",1,3,null,"David Craddock","WJ","S",1,5,5,null,"Matthew Ironside","BS","V40",1,16,16,null,"Matthew Billis","SS","V40",1,24,24,null,"Martyn Coulter","HRC","S",1,23,23]
["Rob Lowe","HRC","V50",1,4,null,"Liam Struwe","WJ","S",1,6,6,null,"Henry Ward","BS","S",1,18,18,null,"Nigel Flynn","SS","V40",1,28,28,null,"Ryan Smith","HRC","V40",1,25,25]
["David Craddock","WJ","S",1,5,null,"Nick Axam","WJ","V40",1,7,7,null,"Mark Lawrence","BS","S",1,30,30,null,"Marco Arcidiacono","SS","V50",1,36,36,null,"Benjamin Usher","HRC","S",1,33,33]
["Liam Struwe","WJ","S",1,6,null,"Will Breese","WJ","S",1,8,8,null,"Gordon Mcleod","BS","S",1,32,32,null,"Ian MacDougall","SS","V60",1,48,48,null,"Lee Webber","HRC","V40",1,35,35]
["Nick Axam","WJ","V40",1,7,null,"Kevin Sambridge","WJ","V50",1,9,9,null,"Gary Jones","BS","V50",1,41,41,null,"David Raimondo","SS","V40",1,52,52,null,"Chris Burgess","HRC","V50",1,40,40]
["Will Breese","WJ","S",1,8,null,"Tim Brignall","WJ","S",1,10,10,null,"Chris Chew","BS","V50",1,44,44,null,"John James","SS","V60",1,55,55,null,"Darren Tiley","HRC","V50",1,43,43]
["Kevin Sambridge","WJ","V50",1,9,null,"Vincent Riviere","WJ","V40",1,11,null,null,"NEIL GAGE","BS","V40",1,46,null,null,"Neil Halls","SS","V50",1,59,null,null,"Miguel Luque","HRC","V50",1,51]
["Tim Brignall","WJ","S",1,10,null,"Tom Porter","WJ","S",1,12,null,null,"Richard Foweraker","BS","V40",1,49,null,null,"Arthur Oliva","SS","V60",1,62,null,null,"John Bull","HRC","V50",1,54]
["Vincent Riviere","WJ","V40",1,11,null,"Mark Ford","WJ","S",1,13,null,null,"Stuart Longley","BS","V40",1,53,null,null,"Alistair Cooke","SS","V40",1,66,null,null,"Paul Dixon","HRC","V50",1,56]
["Tom Porter","WJ","S",1,12,null,"William Caunce","WJ","S",1,17,null,null,"Lee Vass","BS","V40",1,57,null,null,"Robert Shaw","SS","V60",2,69,null,null,"Gary Mead","HRC","V50",1,58]
["Mark Ford","WJ","S",1,13,null,"Neil Bull","WJ","V40",1,19,null,null,"Paul Dearlove","BS","V50",1,63,null,null,"Michael Bradley","SS","V50",1,72,null,null,"Sean Flynn","HRC","V60",1,61]
["Robert Thorpe","BS","V50",1,14,null,"Alexander Chappell","WJ","S",1,20,null,null,"Balint Bone","BS","S",1,64,null,null,null,null,null,null,null,null,null,"Alan Cootes","HRC","V60",1,70]
["Iain Henley","SS","V40",1,15,null,"Andrew Kavanagh","WJ","S",1,26,null,null,"Martin Howe","BS","V60",1,68,null,null,null,null,null,null,null,null,null,"Stephen Cozens","HRC","V40",1,74]
["Matthew Ironside","BS","V40",1,16,null,"Jamie Higgs","WJ","V40",1,27,null,null,"Ian Penson","BS","V60",1,71,null,null,null,null,null,null,null,null,null,"Michael Gleeson","HRC","V50",1,75]
["William Caunce","WJ","S",1,17,null,"Stefan Gauntlett","WJ","S",1,29,null,null,"Rohit Dayama","BS","V40",1,73]
["Henry Ward","BS","S",1,18,null,"Phil Earle","WJ","V40",1,31]
["Neil Bull","WJ","V40",1,19,null,"Mark Sanz","WJ","V50",1,34]
["Alexander Chappell","WJ","S",1,20,null,"Russell Cook","WJ","S",1,37]
["Kirk Crudgington","HRC","V40",1,21,null,"Alan Taylor","WJ","V50",1,38]
["Tim McMahon","SS","V40",1,22,null,"James Baker","WJ","S",1,39]
["Martyn Coulter","HRC","S",1,23,null,"Andrew Biggs","WJ","V40",1,42]
["Matthew Billis","SS","V40",1,24,null,"Peter Baker","WJ","V60",1,45]
["Ryan Smith","HRC","V40",1,25,null,"James Randall","WJ","V40",1,47]
["Andrew Kavanagh","WJ","S",1,26,null,"Steven Argent","WJ","V60",1,50]
["Jamie Higgs","WJ","V40",1,27,null,"Richard van Maanenberg","WJ","V50",1,60]
["Nigel Flynn","SS","V40",1,28,null,"Alan Randall","WJ","V60",2,65]
["Stefan Gauntlett","WJ","S",1,29,null,"Simon Joyce","WJ","V50",1,67]
["Mark Lawrence","BS","S",1,30]
["Phil Earle","WJ","V40",1,31]
["Gordon Mcleod","BS","S",1,32,null,"Senior",null,null,null,null,null,null,"V40",null,null,null,null,null,null,"V50",null,null,null,null,null,null,"V60",null,null,null,null,null,null,"V70"]
["Benjamin Usher","HRC","S",1,33,null,"Name","Club","Age Category","Claim","Overall Position","Category Position",null,"Name","Club","Age Category","Claim","Overall Position","Category Position",null,"Name","Club","Age Category","Claim","Overall Position","Category Position",null,"Name","Club","Age Category","Claim","Overall Position","Category Position",null,"Name","Club","Age Category","Claim","Overall Position","Category Position"]
["Mark Sanz","WJ","V50",1,34,null,"Michael Waddington","WJ","S",1,1,1,null,"Andrew Mynott","WJ","V40",1,3,1,null,"Rob Lowe","HRC","V50",1,4,1,null,"Peter Baker","WJ","V60",1,45,1]
["Lee Webber","HRC","V40",1,35,null,"Samuel Pedley","BS","S",1,2,2,null,"Nick Axam","WJ","V40",1,7,2,null,"Kevin Sambridge","WJ","V50",1,9,2,null,"Ian MacDougall","SS","V60",1,48,2]
["Marco Arcidiacono","SS","V50",1,36,null,"David Craddock","WJ","S",1,5,3,null,"Vincent Riviere","WJ","V40",1,11,3,null,"Robert Thorpe","BS","V50",1,14,3,null,"Steven Argent","WJ","V60",1,50,3]
["Russell Cook","WJ","S",1,37,null,"Liam Struwe","WJ","S",1,6,4,null,"Iain Henley","SS","V40",1,15,4,null,"Mark Sanz","WJ","V50",1,34,4,null,"John James","SS","V60",1,55,4]
["Alan Taylor","WJ","V50",1,38,null,"Will Breese","WJ","S",1,8,5,null,"Matthew Ironside","BS","V40",1,16,5,null,"Marco Arcidiacono","SS","V50",1,36,5,null,"Sean Flynn","HRC","V60",1,61,5]
["James Baker","WJ","S",1,39,null,"Tim Brignall","WJ","S",1,10,6,null,"Neil Bull","WJ","V40",1,19,6,null,"Alan Taylor","WJ","V50",1,38,6,null,"Arthur Oliva","SS","V60",1,62,6]
["Chris Burgess","HRC","V50",1,40,null,"Tom Porter","WJ","S",1,12,7,null,"Kirk Crudgington","HRC","V40",1,21,7,null,"Chris Burgess","HRC","V50",1,40,7,null,"Alan Randall","WJ","V60",2,65,7]
["Gary Jones","BS","V50",1,41,null,"Mark Ford","WJ","S",1,13,8,null,"Tim McMahon","SS","V40",1,22,8,null,"Gary Jones","BS","V50",1,41,8,null,"Martin Howe","BS","V60",1,68,8]
["Andrew Biggs","WJ","V40",1,42,null,"William Caunce","WJ","S",1,17,9,null,"Matthew Billis","SS","V40",1,24,9,null,"Darren Tiley","HRC","V50",1,43,9,null,"Robert Shaw","SS","V60",2,69,9]
["Darren Tiley","HRC","V50",1,43,null,"Henry Ward","BS","S",1,18,10,null,"Ryan Smith","HRC","V40",1,25,10,null,"Chris Chew","BS","V50",1,44,10,null,"Alan Cootes","HRC","V60",1,70,10]
["Chris Chew","BS","V50",1,44,null,"Alexander Chappell","WJ","S",1,20,11,null,"Jamie Higgs","WJ","V40",1,27,11,null,"Miguel Luque","HRC","V50",1,51,11,null,"Ian Penson","BS","V60",1,71,11]
["Peter Baker","WJ","V60",1,45,null,"Martyn Coulter","HRC","S",1,23,12,null,"Nigel Flynn","SS","V40",1,28,12,null,"John Bull","HRC","V50",1,54,12]
["NEIL GAGE","BS","V40",1,46,null,"Andrew Kavanagh","WJ","S",1,26,13,null,"Phil Earle","WJ","V40",1,31,13,null,"Paul Dixon","HRC","V50",1,56,13]
["James Randall","WJ","V40",1,47,null,"Stefan Gauntlett","WJ","S",1,29,14,null,"Lee Webber","HRC","V40",1,35,14,null,"Gary Mead","HRC","V50",1,58,14]
["Ian MacDougall","SS","V60",1,48,null,"Mark Lawrence","BS","S",1,30,15,null,"Andrew Biggs","WJ","V40",1,42,15,null,"Neil Halls","SS","V50",1,59,15]
["Richard Foweraker","BS","V40",1,49,null,"Gordon Mcleod","BS","S",1,32,16,null,"NEIL GAGE","BS","V40",1,46,16,null,"Richard van Maanenberg","WJ","V50",1,60,16]
["Steven Argent","WJ","V60",1,50,null,"Benjamin Usher","HRC","S",1,33,17,null,"James Randall","WJ","V40",1,47,17,null,"Paul Dearlove","BS","V50",1,63,17]
["Miguel Luque","HRC","V50",1,51,null,"Russell Cook","WJ","S",1,37,18,null,"Richard Foweraker","BS","V40",1,49,18,null,"Simon Joyce","WJ","V50",1,67,18]
["David Raimondo","SS","V40",1,52,null,"James Baker","WJ","S",1,39,19,null,"David Raimondo","SS","V40",1,52,19,null,"Michael Bradley","SS","V50",1,72,19]
["Stuart Longley","BS","V40",1,53,null,"Balint Bone","BS","S",1,64,20,null,"Stuart Longley","BS","V40",1,53,20,null,"Michael Gleeson","HRC","V50",1,75,20]
["John Bull","HRC","V50",1,54,null,null,null,null,null,null,null,null,"Lee Vass","BS","V40",1,57,21]
["John James","SS","V60",1,55,null,null,null,null,null,null,null,null,"Alistair Cooke","SS","V40",1,66,22]
["Paul Dixon","HRC","V50",1,56,null,null,null,null,null,null,null,null,"Rohit Dayama","BS","V40",1,73,23]
["Lee Vass","BS","V40",1,57,null,null,null,null,null,null,null,null,"Stephen Cozens","HRC","V40",1,74,24]
["Gary Mead","HRC","V50",1,58]
["Neil Halls","SS","V50",1,59]
["Richard van Maanenberg","WJ","V50",1,60]
["Sean Flynn","HRC","V60",1,61]
["Arthur Oliva","SS","V60",1,62]
["Paul Dearlove","BS","V50",1,63]
["Balint Bone","BS","S",1,64]
["Alan Randall","WJ","V60",2,65]
["Alistair Cooke","SS","V40",1,66]
["Simon Joyce","WJ","V50",1,67]
["Martin Howe","BS","V60",1,68]
["Robert Shaw","SS","V60",2,69]
["Alan Cootes","HRC","V60",1,70]
["Ian Penson","BS","V60",1,71]
["Michael Bradley","SS","V50",1,72]
["Rohit Dayama","BS","V40",1,73]
["Stephen Cozens","HRC","V40",1,74]
["Michael Gleeson","HRC","V50",1,75]

{"sheet":"Race 4-Ladies","index":13,"n_rows":60,"n_cols":40,"rows_kept":60,"cut":false,"hidden":false,"merged":[]}
["Overall",null,null,null,null,null,"Ware Joggers",null,null,null,null,null,null,"Bishop's Stortford",null,null,null,null,null,null,"Saffron Striders",null,null,null,null,null,null,"Harlow Running & Tri Club"]
["Name","Club","Age Category","Claim","Position",null,"Name","Club","Age Category","Claim","Position",null,null,"Name","Club","Age Category","Claim","Position",null,null,"Name","Club","Age Category","Claim","Position",null,null,"Name","Club","Age Category","Claim","Position",null,null,"Name","Club","Age Category","Claim","Position"]
["Katy Woodward","WJ","V35",1,1,null,"Katy Woodward","WJ","V35",1,1,1,null,"Sophie Barc","BS","V45",1,6,6,null,"Zib Gotto","SS","V45",1,5,5,null,"Terri Wiley","HRC","V35",1,2,2]
["Terri Wiley","HRC","V35",1,2,null,"Katrina Dobson","WJ","V35",1,3,3,null,"Peijie Zhu","BS","V45",1,27,27,null,"Flo Greatrix","SS","S",1,10,10,null,"Catherine Ridge","HRC","V35",1,9,9]
["Katrina Dobson","WJ","V35",1,3,null,"Marianne Mitchell","WJ","V45",1,4,4,null,"Jen Burke","BS","V35",1,31,31,null,"Kerry Harrington","SS","V45",1,26,26,null,"Allison Beeton","HRC","V55",1,13,13]
["Marianne Mitchell","WJ","V45",1,4,null,"Susan Millward","WJ","V45",1,7,7,null,"Ellen Brooks","BS","V45",1,33,33,null,"Charlotte Diggins","SS","V45",1,29,29,null,"Linda Helm-Manley","HRC","V55",1,16,16]
["Zib Gotto","SS","V45",1,5,null,"Lucy Dupuis","WJ","V45",1,8,8,null,"Patricia Poole","BS","V55",1,34,34,null,"Helen Howard","SS","V45",1,30,30,null,"Sandra Rust","HRC","V55",1,17,17]
["Sophie Barc","BS","V45",1,6,null,"Gemma Charville","WJ","V35",1,11,11,null,"Lara Wheeldon","BS","V45",1,35,35,null,"Margit Wendelberger James","SS","V55",1,36,36,null,"Donna Milton","HRC","V45",1,18,18]
["Susan Millward","WJ","V45",1,7,null,"Emma Mulley","WJ","V35",1,12,12,null,"Frances Iwaschkin","BS","V45",1,41,41,null,"Charlotte Teall","SS","V35",1,46,46,null,"Fieke Blackwell","HRC","V35",1,19,19]
["Lucy Dupuis","WJ","V45",1,8,null,"Anthea Francis","WJ","V45",1,14,14,null,"Jos Ashpole","BS","V45",1,47,47,null,null,null,null,null,null,null,null,"Vicky Steadman","HRC","V45",1,20,20]
["Catherine Ridge","HRC","V35",1,9,null,"Cate Campany","WJ","V55",1,15,null,null,"Jilly Palmer","BS","V55",1,54,null,null,null,null,null,null,null,null,null,"Louise Cootes","HRC","V35",1,22]
["Flo Greatrix","SS","S",1,10,null,"Jemina Punni","WJ","V35",1,21,null,null,"Natasha Spiller","BS","V45",1,55,null,null,null,null,null,null,null,null,null,"Kerry Mavris","HRC","V45",1,23]
["Gemma Charville","WJ","V35",1,11,null,"Pamela Wilson","WJ","V65",1,24,null,null,null,null,null,null,null,null,null,null,null,null,null,null,null,null,"Anna Robey","HRC","V35",1,37]
["Emma Mulley","WJ","V35",1,12,null,"Deborah Amies","WJ","V55",1,25,null,null,null,null,null,null,null,null,null,null,null,null,null,null,null,null,"Alison Wilkinson","HRC","V55",1,38]
["Allison Beeton","HRC","V55",1,13,null,"Sam Rowe","WJ","V55",1,28,null,null,null,null,null,null,null,null,null,null,null,null,null,null,null,null,"Sandra Webber","HRC","V35",1,42]
["Anthea Francis","WJ","V45",1,14,null,"Jane Wren","WJ","V55",2,32,null,null,null,null,null,null,null,null,null,null,null,null,null,null,null,null,"Tracy Stratford","HRC","V35",1,43]
["Cate Campany","WJ","V55",1,15,null,"Christel Ainge","WJ","V45",1,39,null,null,null,null,null,null,null,null,null,null,null,null,null,null,null,null,"Claire Morris","HRC","V35",1,44]
["Linda Helm-Manley","HRC","V55",1,16,null,"Joanne Gray","WJ","V35",1,40,null,null,null,null,null,null,null,null,null,null,null,null,null,null,null,null,"Jane Evans","HRC","V55",1,48]
["Sandra Rust","HRC","V55",1,17,null,"Lynsay Evans","WJ","V55",1,45,null,null,null,null,null,null,null,null,null,null,null,null,null,null,null,null,"Selina Morgan","HRC","V35",1,52]
["Donna Milton","HRC","V45",1,18,null,"Jeanette Collins","WJ","V55",1,49,null,null,null,null,null,null,null,null,null,null,null,null,null,null,null,null,"Luella Dixon","HRC","V55",1,53]
["Fieke Blackwell","HRC","V35",1,19,null,"Marcia Fisher","WJ","V45",1,50,null,null,null,null,null,null,null,null,null,null,null,null,null,null,null,null,"Deborah Read","HRC","V35",1,56]
["Vicky Steadman","HRC","V45",1,20,null,"Nadia Selby","WJ","V45",1,51,null,null,null,null,null,null,null,null,null,null,null,null,null,null,null,null,"Keren Greenall","HRC","V45",1,57]
["Jemina Punni","WJ","V35",1,21,null,"Rosalind Hitchen","WJ","V55",1,58]
["Louise Cootes","HRC","V35",1,22]
["Kerry Mavris","HRC","V45",1,23]
["Pamela Wilson","WJ","V65",1,24,null,"Senior",null,null,null,null,null,null,"V35",null,null,null,null,null,null,"V45",null,null,null,null,null,null,"V55",null,null,null,null,null,null,"V65"]
["Deborah Amies","WJ","V55",1,25,null,"Name","Club","Age Category","Claim","Overall Position","Category Position",null,"Name","Club","Age Category","Claim","Overall Position","Category Position",null,"Name","Club","Age Category","Claim","Overall Position","Category Position",null,"Name","Club","Age Category","Claim","Overall Position","Category Position",null,"Name","Club","Age Category","Claim","Overall Position","Category Position"]
["Kerry Harrington","SS","V45",1,26,null,"Flo Greatrix","SS","S",1,10,1,null,"Katy Woodward","WJ","V35",1,1,1,null,"Marianne Mitchell","WJ","V45",1,4,1,null,"Allison Beeton","HRC","V55",1,13,1,null,"Pamela Wilson","WJ","V65",1,24,1]
["Peijie Zhu","BS","V45",1,27,null,null,null,null,null,null,null,null,"Terri Wiley","HRC","V35",1,2,2,null,"Zib Gotto","SS","V45",1,5,2,null,"Cate Campany","WJ","V55",1,15,2]
["Sam Rowe","WJ","V55",1,28,null,null,null,null,null,null,null,null,"Katrina Dobson","WJ","V35",1,3,3,null,"Sophie Barc","BS","V45",1,6,3,null,"Linda Helm-Manley","HRC","V55",1,16,3]
["Charlotte Diggins","SS","V45",1,29,null,null,null,null,null,null,null,null,"Catherine Ridge","HRC","V35",1,9,4,null,"Susan Millward","WJ","V45",1,7,4,null,"Sandra Rust","HRC","V55",1,17,4]
["Helen Howard","SS","V45",1,30,null,null,null,null,null,null,null,null,"Gemma Charville","WJ","V35",1,11,5,null,"Lucy Dupuis","WJ","V45",1,8,5,null,"Deborah Amies","WJ","V55",1,25,5]
["Jen Burke","BS","V35",1,31,null,null,null,null,null,null,null,null,"Emma Mulley","WJ","V35",1,12,6,null,"Anthea Francis","WJ","V45",1,14,6,null,"Sam Rowe","WJ","V55",1,28,6]
["Jane Wren","WJ","V55",2,32,null,null,null,null,null,null,null,null,"Fieke Blackwell","HRC","V35",1,19,7,null,"Donna Milton","HRC","V45",1,18,7,null,"Jane Wren","WJ","V55",2,32,7]
["Ellen Brooks","BS","V45",1,33,null,null,null,null,null,null,null,null,"Jemina Punni","WJ","V35",1,21,8,null,"Vicky Steadman","HRC","V45",1,20,8,null,"Patricia Poole","BS","V55",1,34,8]
["Patricia Poole","BS","V55",1,34,null,null,null,null,null,null,null,null,"Louise Cootes","HRC","V35",1,22,9,null,"Kerry Mavris","HRC","V45",1,23,9,null,"Margit Wendelberger James","SS","V55",1,36,9]
["Lara Wheeldon","BS","V45",1,35,null,null,null,null,null,null,null,null,"Jen Burke","BS","V35",1,31,10,null,"Kerry Harrington","SS","V45",1,26,10,null,"Alison Wilkinson","HRC","V55",1,38,10]
["Margit Wendelberger James","SS","V55",1,36,null,null,null,null,null,null,null,null,"Anna Robey","HRC","V35",1,37,11,null,"Peijie Zhu","BS","V45",1,27,11,null,"Lynsay Evans","WJ","V55",1,45,11]
["Anna Robey","HRC","V35",1,37,null,null,null,null,null,null,null,null,"Joanne Gray","WJ","V35",1,40,12,null,"Charlotte Diggins","SS","V45",1,29,12,null,"Jane Evans","HRC","V55",1,48,12]
["Alison Wilkinson","HRC","V55",1,38,null,null,null,null,null,null,null,null,"Sandra Webber","HRC","V35",1,42,13,null,"Helen Howard","SS","V45",1,30,13,null,"Jeanette Collins","WJ","V55",1,49,13]
["Christel Ainge","WJ","V45",1,39,null,null,null,null,null,null,null,null,"Tracy Stratford","HRC","V35",1,43,14,null,"Ellen Brooks","BS","V45",1,33,14,null,"Luella Dixon","HRC","V55",1,53,14]
["Joanne Gray","WJ","V35",1,40,null,null,null,null,null,null,null,null,"Claire Morris","HRC","V35",1,44,15,null,"Lara Wheeldon","BS","V45",1,35,15,null,"Jilly Palmer","BS","V55",1,54,15]
["Frances Iwaschkin","BS","V45",1,41,null,null,null,null,null,null,null,null,"Charlotte Teall","SS","V35",1,46,16,null,"Christel Ainge","WJ","V45",1,39,16,null,"Rosalind Hitchen","WJ","V55",1,58,16]
["Sandra Webber","HRC","V35",1,42,null,null,null,null,null,null,null,null,"Selina Morgan","HRC","V35",1,52,17,null,"Frances Iwaschkin","BS","V45",1,41,17]
["Tracy Stratford","HRC","V35",1,43,null,null,null,null,null,null,null,null,"Deborah Read","HRC","V35",1,56,18,null,"Jos Ashpole","BS","V45",1,47,18]
["Claire Morris","HRC","V35",1,44,null,null,null,null,null,null,null,null,null,null,null,null,null,null,null,"Marcia Fisher","WJ","V45",1,50,19]
["Lynsay Evans","WJ","V55",1,45,null,null,null,null,null,null,null,null,null,null,null,null,null,null,null,"Nadia Selby","WJ","V45",1,51,20]
["Charlotte Teall","SS","V35",1,46,null,null,null,null,null,null,null,null,null,null,null,null,null,null,null,"Natasha Spiller","BS","V45",1,55,21]
["Jos Ashpole","BS","V45",1,47,null,null,null,null,null,null,null,null,null,null,null,null,null,null,null,"Keren Greenall","HRC","V45",1,57,22]
["Jane Evans","HRC","V55",1,48]
["Jeanette Collins","WJ","V55",1,49]
["Marcia Fisher","WJ","V45",1,50]
["Nadia Selby","WJ","V45",1,51]
["Selina Morgan","HRC","V35",1,52]
["Luella Dixon","HRC","V55",1,53]
["Jilly Palmer","BS","V55",1,54]
["Natasha Spiller","BS","V45",1,55]
["Deborah Read","HRC","V35",1,56]
["Keren Greenall","HRC","V45",1,57]
["Rosalind Hitchen","WJ","V55",1,58]